{"text_format":"1","workbook":"xlsx","n_sheets":19,"sheets":["NBR Frontpage","Information","Plan","Listor","db","Sprutplan","Serial average 2019","Wägg 154","Korn 153","Vrag 152","Vall 151","Sass 150"," Medeltal 2011-2018","Treatments","Field protocol 154","Field protocol 153","Field protocol 152","Field protocol 151","Field protocol 150"],"not_rendered":{"charts":0,"images":1,"macros":1,"external_links":18,"defined_names":472,"comments":1,"pivot_tables":0},"unopened":[],"bounds":{"document_bytes":16777216,"sheet_cells":100000,"rows_first":2000,"rows_last":500,"rows_between":2000,"halvings":0,"cell_chars":16384,"cell_head_chars":4096},"cells_cut":0,"cells_raw":0,"read":"whole","date_system":"1900"}

{"sheet":"NBR Frontpage","index":0,"n_rows":48,"n_cols":30,"rows_kept":48,"cut":false,"hidden":false,"merged":[[16,0,17,1],[19,0,19,1],[20,0,21,1]]}
[]
[null,null,null,null,null,null,null,null,null,null,null,null,null,null,null,null,null,null,null,null,null,null,null,null,null,null,null,null,null,"518-2009"]
[]
[null,"427/2019"]
[null,"Report"]
[]
[]
[]
[]
[]
[]
[]
[]
[]
[]
[]
["Strategies for leaf diseases in sugar beet"]
[]
[]
["Aim"]
["Treatment against leaf diseases in sugar beet"]
[]
[]
[]
[]
["Rapport med försöksdata och resultattabeller"]
["Report with trial data and tables of result"]
[]
[]
[]
[]
["Denna publikation innehåller försöksdata och resultat i tabeller och figurer. Det kan förekomma"]
["mindre fel och inkonsekvenser i språk och layout. Alla sidor är inte alltid utskriftsvänliga."]
["Vid frågor eller kommentarer är du alltid välkommen att kontakta författaren nedan."]
[]
["The appendix comprises documentations from the research project. Minor mistakes in language "]
["and lack of adjustments in layout may occur. Questions may be addressed to the project manager."]
[]
[]
[]
[{"$f":"VLOOKUP([12]Input!C7,[12]Listor!$A$21:$J$31,2,FALSE)","v":"Joakim Ekelöf"}]
[{"$f":"VLOOKUP([12]Input!C7,[12]Listor!$A$21:$J$31,5,FALSE)","v":"JE@nbrf.nu"}]
[{"$f":"VLOOKUP([12]Input!C7,[12]Listor!$A$21:$J$31,3,FALSE)","v":"(+46) 736 28 67 24"}]
[]
["NBR Nordic Beet Research Foundation (Fond)"]
["DK: Højbygårdvej 14, DK-4960 Holeby"]
["SE: Borgeby Slottsväg 11, SE-237 91 Bjärred"]
["Phone: +45 54 60 14 40","http://www.nordicbeet.nu/"]

{"sheet":"Information","index":1,"n_rows":0,"n_cols":0,"rows_kept":0,"cut":false,"hidden":false,"merged":[]}

{"sheet":"Plan","index":2,"n_rows":24,"n_cols":29,"rows_kept":24,"cut":false,"hidden":false,"merged":[]}
["427 Behandling mot bladsvampar i sockerbetor"]
["temp2"]
["Formål/Aim:"]
[]
["Treatment against leaf diseases in sugar beet"]
[]
["Entry","Ref","Proodukt",null,"TI","TII","TIII","treatmcode"]
[1,"R","Obehandlat",null,null,null,null,20451]
[2,null,"Två halvdoser CP",null,0.3,0.3,null,20542]
[3,null,"Två heldoser CP",null,0.6,0.6,null,21153]
[4,null,"Två halvdoser (Amistar Gold/Comet Pro)",null,0.5,0.3,null,22170]
[5,null,"Två heldoser (Amistar Gold/Comet Pro)",null,1,0.6,null,22168]
[]
[]
[]
[]
[]
[]
[]
[]
[]
[]
[]
[null,null,null,null,null,null,null,null,null,null,null,null,null,null,null,null,null,null,null,null,null,null,null,null,null,null,null,null,"Joakim Ekelöf"]

{"sheet":"Listor","index":3,"n_rows":14,"n_cols":1,"rows_kept":14,"cut":false,"hidden":true,"merged":[]}
["Sortering av flikarna"]
[]
[]
[]
[]
["Treatments"]
["Soil samples"]
["Plan"]
["Information"]
["NBR Frontpage"]
["db"]
[]
[]
["Slutet"]

{"sheet":"db","index":4,"n_rows":726,"n_cols":19,"rows_kept":726,"cut":false,"hidden":true,"merged":[]}
["Order","Sascode","Swedish","Danish","English","Expl","Unit","Decimals  and formatting values","Decimals  and formatting heading","Column width","Posetive with high value =1","trans-formation","treatment","errpr_distr","missing_value","multiple_testing_adjustment",null,"Språkkod:",3]
[5,"pi","Nematoder","Nematode","Pi","Beet cyst","eal/g",1,1,12,0,"identity","treatm","normal"]
[6,"pf","Nematoder","Nematode","Pf","Beet cyst","eal/g",1,1,12,0,"identity","treatm","normal"]
[7,"pfpi","Nematoder","Nematode","Pf/Pi","Beet cyst","eal/g",1,1,12,0,"identity","treatm","normal",null,null,null,"Svenska",3]
[8,"plh50","Plant nr","Planter","Plant no",0.5,"1000/ha",1,1,8,1,"identity","treatm","normal",null,null,null,"Danska",4]
[9,"plh100","Plant nr","Planter","Plant no",1,"1000/ha",1,1,8,1,"identity","treatm","normal",0,null,null,"Engelska",5]
[10,"plhfin","Plant nr","Planter","Plant no","Final ","1000/ha",1,1,8,1,"identity","treatm","normal",0]
[11,"pln_parc","Plant nr","Planter","Plant no",1,"nr/plot",1,1,8,1,"identity","treatm","normal",0]
[12,"topweight_kg","Rotvikt","Rod","Root weight","june","kg/20 beets",1,1,10,1,"identity","treatm","normal",0]
[13,"rootweight_kg","Blastvikt","foliage","Leaf weight","june","kg/20 beets",1,1,10,1,"identity","treatm","normal",0]
[14,"totalwgt_kg","Total  vikt","Total  vikt","Total  weight","june","kg/20 beets",1,1,10,1,"identity","treatm","normal",0]
[15,"weirot","Rot","Rod","Root ",null,"t/ha",1,1,5,1,"identity","treatm","normal",0]
[16,"pol","Socker","Sukker","Sugar",null,"%",1,1,7,1,"identity","treatm","normal",0]
[17,"sug","Socker","Sukker","Sugar",null,"t/ha",1,1,7,1,"identity","treatm","normal",0]
[18,"sugrel","Socker","Sukker","Sugar",null,"relative",1,1,7,1,"identity","treatm","normal",0]
[19,"sugrel2","Socker","Sukker","Sugar",null,"relative",1,1,7,1,"identity","treatm","normal",0]
[20,"econse","Ekonomi ","Økonomi","Economy","Total income","SEK/ha",1,1,12,1,"identity","treatm","normal"]
[21,"diffeconavgse","Ekonomi ","Økonomi","Economy","Diff to avg.","SEK/ha",1,1,12,1,"identity","treatm","normal"]
[22,"diffecon_nt_se","Ekonomi","Økonomi","Economy","Diff to NT","SEK/ha",1,1,12,1,"identity","treatm","normal"]
[23,"econ2se","Ekonomi ","Økonomi","Economy","Total income","SEK/ha",1,1,12,1,"identity","treatm","normal"]
[24,"diffecon_sus_se","Ekonomi","Økonomi","Economy","Diff to suceptible","SEK/ha",1,1,12,1,"identity","treatm","normal"]
[25,"econdk","Ekonomi","Forenklet","Økonomi","Total income","DKK/ha",1,1,12,1,"identity","treatm","normal"]
[26,"diffeconavgdk","Ekonomi","Forenklet","Økonomi","Diff to avg.","DKK/ha",1,1,12,1,"identity","treatm","normal"]
[27,"diffecon_nt_dk","Ekonomi","Forenklet","Økonomi","Diff to NT","DKK/ha",1,1,12,1,"identity","treatm","normal"]
[28,"econ2dk","Ekonomi","Forenklet","Økonomi","Total income","DKK/ha",1,1,12,1,"identity","treatm","normal"]
[29,"diffecon_sus_dk","Ekonomi","Forenklet","Økonomi","Diff to suceptible","DKK/ha",1,1,12,1,"identity","treatm","normal"]
[30,"dirt","Jord","Vh. jord","Tare",null,"%",1,1,7,0,"identity","treatm","normal"]
[31,"renpct","Renhet","Renhed","Cleaness",null,"%",1,1,7.5,1,"identity","treatm","normal",0]
[32,"rodfure","Rotfåra","Rodfure","Groove",null,"Sc. 1-9",1,1,8,1,"identity","treatm","normal",0]
[33,"kalium","K","K","K","pr 100 g sukker","mmol",1,1,7.5,0,"identity","treatm","normal",0]
[34,"natrium","Na","Na","Na","pr 100 g sukker","mmol",1,1,7.5,0,"identity","treatm","normal",0]
[35,"kna","K+Na","K+Na","K+Na","pr 100g beet","mmol",1,1,7.5,0,"identity","treatm","normal",0]
[36,"blaa","Blåtal","Amino-N","Amino-N","pr 100g beet","mg ",1,1,8,0,"identity","treatm","normal",0]
[37,"ivtal","IV-tal","IV-tal","IV-tal","pr 100 g sukker","mmol",1,1,8,0,"identity","treatm","normal"]
[38,"aph_scale5","Aphanomyces",null,"Aphanomyces","At factory","Sc. 0-5",1,1,14,0,"identity","treatm","normal"]
[39,"aph_vxt","Aphanomyces",null,"Aphanomyces","Greenhouse\n","Index 0-100",1,1,14,0,"identity","treatm","normal"]
[40,"aph_field","Aphanomyces",null,"Aphanomyces","Graded in field","Sc. 0-5",1,1,14,0,"identity","treatm","normal"]
[41,"mainbolt","Fröstockar","Stok","Bolters","Early","‰",1,1,8,0,"identity","treatm","normal"]
[42,"sidebolt","Sidoskott","Stok ","Lateral","Early","‰",1,1,8,0,"identity","treatm","normal"]
[43,"mainbolt_a2","Fröstockar","Stok ","Bolters","Late","‰",1,1,11,0,"identity","treatm","normal"]
[44,"sidebolt_a2","Sidoskott","Stok ","Lateral","Late","‰",1,1,8,0,"identity","treatm","normal"]
[45,"bolters","Fröstockar","stock","Bolters","Sum","‰",1,1,11,0,"identity","treatm","normal"]
[46,"height","Nackhöjd","Højde","Height",null,"mm",1,1,10,1,"identity","treatm","normal",0]
[47,"hojde_s15","Nackhöjd sd","Højde std","Height std",null,"mm",1,1,11,1,"identity","treatm","normal",0]
[48,"yellowleaf","Gula blad","Gule blade","Yellow leaves","Aug","Sc. 0-10",1,1,10.5,0,"identity","treatm","normal"]
[49,"leafcover","Bladtäckning","Bladdække","Leafcover","Sep","Sc. 1-100",1,1,13,1,"identity","treatm","normal"]
[50,"topvigour","Friskhet","Topfriskhed","Leaf vigour","Sep","Sc. 1-10",1,1,12,1,"identity","treatm","normal"]
[51,"mgdef","mgdef","Mg mangel","Mg deficiency",null,"Sc. 0-10",1,1,9,1,"identity","treatm","normal"]
[52,"vaskbarhed","Tvättbarhet","Vaskbar","Washability",null,"Sc. 1-9",1,1,8,1,"identity","treatm","normal"]
[53,"grenethed","Grenighet","Grene","Branching",null,"Sc. 1-9",1,1,8,1,"identity","treatm","normal"]
[54,"glathed","Ytans jämnhet","Glathed","Smoothness",null,"Sc. 1-4",1,1,11,1,"identity","treatm","normal"]
[55,"mildew_scale","Mjöldagg","Meldug","Mildew","Early","Sc. 1-100",1,1,9,0,"identity","treatm","normal"]
[56,"rust_scale","Rost","Rust","Rust","Early","Sc. 1-100",1,1,7,0,"identity","treatm","normal"]
[57,"ramularia_scale","Ramularia","Ramularia","Ramularia","Early","Sc. 1-100",1,1,10,0,"identity","treatm","normal"]
[58,"cerco_scale","Cercospora","Cercospora","Cercospora","Early","Sc. 1-100",1,1,11,0,"identity","treatm","normal"]
[59,"regrowth","Återväxt",null,"Regrowth","Early","Sc. 1-100",1,1,11.5,0,"identity","treatm","normal"]
[60,"mildew_scale_a2","Mjöldagg","Meldug","Mildew","Mid","Sc. 1-100",1,1,9,0,"identity","treatm","normal"]
[61,"rust_scale_a2","Rost","Rust","Rust","Mid","Sc. 1-100",1,1,7,0,"identity","treatm","normal"]
[62,"ramularia_scale_a2","Ramularia","Ramularia","Ramularia","Mid","Sc. 1-100",1,1,10,0,"identity","treatm","normal"]
[63,"cerco_scale_a2","Cercospora","Cercospora","Cercospora","Mid","Sc. 1-100",1,1,11,0,"identity","treatm","normal"]
[64,"regrowth_a2","Återväxt",null,"Regrowth","Mid","Sc. 1-100",1,1,11.5,0,"identity","treatm","normal"]
[65,"mildew_scale_a3","Mjöldagg","Meldug","Mildew","Late","Sc. 1-100",1,1,9,0,"identity","treatm","normal"]
[66,"rust_scale_a3","Rost","Rust","Rust","Late","Sc. 1-100",1,1,7,0,"identity","treatm","normal"]
[67,"ramularia_scale_a3","Ramularia","Ramularia","Ramularia","Late","Sc. 1-100",1,1,10,0,"identity","treatm","normal"]
[68,"cerco_scale_a3","Cercospora","Cercospora","Cercospora","Late","Sc. 1-100",1,1,11,0,"identity","treatm","normal"]
[69,"regrowth_a4","Återväxt",null,"Regrowth","Late","Sc. 1-100",1,1,11.5,0,"identity","treatm","normal"]
[70,"mildew_scale_a4","Mjöldagg","Meldug","Mildew","Very late","Sc. 1-100",1,1,9,0,"identity","treatm","normal"]
[71,"rust_scale_a4","Rost","Rust","Rust","Very late","Sc. 1-100",1,1,7,0,"identity","treatm","normal"]
[72,"ramularia_scale_a4","Ramularia","Ramularia","Ramularia","Very late","Sc. 1-100",1,1,10,0,"identity","treatm","normal"]
[73,"cerco_scale_a4","Cercospora","Cercospora","Cercospora","Very late","Sc. 1-100",1,1,11,0,"identity","treatm","normal"]
[74,"regrowth_a4","Återväxt",null,"Regrowth","Very late","Sc. 1-100",1,1,11.5,0,"identity","treatm","normal"]
[75,"seedqual","Luckor",null,"Nr of gaps","per plot",">50 cm",1,1,12,0,"identity","treatm","normal"]
[76,"Svampresistens","Svampresistens",null,"untreated/treated","Leaf diseases","%",1,null,14,1,"identity","treatm","normal"]
[77,"frekvens_1","Frekvens","Frekvens","Frequency","nr1","100 blade %",1,1,11,0,"identity","treatm","normal"]
[78,"frekvens_2","Frekvens","Frekvens","Frequency","nr2","100 blade %",1,1,11,0,"identity","treatm","normal"]
[79,"frekvens_3","Frekvens","Frekvens","Frequency","nr3","100 blade %",1,1,11,0,"identity","treatm","normal"]
[80,"frekvens_4","Frekvens","Frekvens","Frequency","nr4","100 blade %",1,1,11,0,"identity","treatm","normal"]
[81,"frekvens_5","Frekvens","Frekvens","Frequency","nr5","100 blade %",1,1,11,0,"identity","treatm","normal"]
[82,"frekvens_6","Frekvens","Frekvens","Frequency","nr6","100 blade %",1,1,11,0,"identity","treatm","normal"]
[83,"frekvens_7","Frekvens","Frekvens","Frequency","nr7","100 blade %",1,1,11,0,"identity","treatm","normal"]
[84,"frekvens_8","Frekvens","Frekvens","Frequency","nr8","100 blade %",1,1,11,0,"identity","treatm","normal"]
[85,"N","Kväve",null,"Nitrogen",2.7,"(%)",1,1,7,1,"identity","treatm","normal",0,null,{"$f":"_xludf.split(B82,2)","v":{"$error":"#NAME?"}}]
[86,"P","Fosfor",null,"Phosphorus",0.27,"(%)",1,1,7,1,"identity","treatm","normal",0]
[87,"K","Kalium",null,"Potassium",2.7,"(%)",1,1,7,1,"identity","treatm","normal",0]
[88,"Mn","Mangan",null,"Manganese",35,"(ppm)",1,1,8,1,"identity","treatm","normal",0]
[89,"B","Bor",null,"Boron",35,"(ppm)",1,1,5,1,"identity","treatm","normal",0]
[90,"Na","Natrium",null,"Sodium",null,"(%)",1,1,8,1,"identity","treatm","normal",0]
[91,"Mg","Magnesium",null,"Magnesium",0.23,"(%)",1,1,11,1,"identity","treatm","normal",0]
[92,"Ca","Kalcium",null,"Calcium",0.53,"(%)",1,1,8,1,"identity","treatm","normal",0]
[93,"Cu","Koppar",null,"Copper",5.4,"(ppm)",1,1,7,1,"identity","treatm","normal",0]
[94,"Mo","Molybden",null,"Molybdenum",0.19,"(ppm)",1,1,10,1,"identity","treatm","normal",0]
[95,"Fe","Järn",null,"Iron",38,"(ppm)",1,1,5,1,"identity","treatm","normal",0]
[96,"Zn","Zink",null,"Zinc",50,"(ppm)",1,1,6,1,"identity","treatm","normal",0]
[97,"S","Svavel",null,"Sulphur",0.2,"(%)",1,1,7,1,"identity","treatm","normal",0]
[98,"DW","Torrvikt",null,"Dry weight","Early","(g)",1,1,10,1,"identity","treatm","normal",0]
[99,"N_a2","Kväve",null,"Nitrogen","Late","(%)",1,1,10,1,"identity","treatm","normal",0]
[100,"P_a2","Fosfor",null,"Phosphorus","Late","(%)",1,1,10,1,"identity","treatm","normal",0]
[101,"K_a2","Kalium",null,"Potassium","Late","(%)",1,1,10,1,"identity","treatm","normal",0]
[102,"Mn_a2","Mangan",null,"Manganese","Late","(ppm)",1,1,10,1,"identity","treatm","normal",0]
[103,"B_a2","Bor",null,"Boron","Late","(ppm)",1,1,10,1,"identity","treatm","normal",0]
[104,"Na_a2","Natrium",null,"Sodium","Late","(%)",1,1,10,1,"identity","treatm","normal",0]
[105,"Mg_a2","Magnesium",null,"Magnesium","Late","(%)",1,1,10,1,"identity","treatm","normal",0]
[106,"Ca_a2","Kalcium",null,"Calcium","Late","(%)",1,1,10,1,"identity","treatm","normal",0]
[107,"Cu_a2","Koppar",null,"Copper","Late","(ppm)",1,1,10,1,"identity","treatm","normal",0]
[108,"Mo_a2","Molybden",null,"Molybdenum","Late","(ppm)",1,1,10,1,"identity","treatm","normal",0]
[109,"Fe_a2","Järn",null,"Iron","Late","(ppm)",1,1,10,1,"identity","treatm","normal",0]
[110,"Zn_a2","Zink",null,"Zinc","Late","(ppm)",1,1,10,1,"identity","treatm","normal",0]
[111,"S_a2","Svavel",null,"Sulphur","Late","(%)",1,1,10,1,"identity","treatm","normal",0]
[112,"DW_a2","Torrvikt",null,"Dry weight","Late","(g)",1,1,10,1,"identity","treatm","normal"]
[113,"br_weight_in1","Vikt ",null,"Weight","Before storage","(kg)",1,1,10,1,"identity","treatm","normal"]
[114,"sh_in","Sockerhalt",null,"sugar content","Before storage","(%)",1,1,10,1,"identity","treatm","normal"]
[115,"renpct_in","Renhet",null,"Cleaness","Before storage","(%)",1,1,10,1,"identity","treatm","normal"]
[116,"sy_in","Sockermängd",null,"Sugar","per box (BS)","(kg)",1,1,10,1,"identity","treatm","normal"]
[117,"inv_in","Invert",null,"Invert","Before storage","(mmol/kg beet)",1,1,10,1,"identity","treatm","normal"]
[118,"ts_in","Torrsubstans",null,"Dry matter","Before storage","(%)",1,1,10,1,"identity","treatm","normal"]
[119,"br_weight_out1","Vikt ",null,"Weight","After storage","(kg)",1,1,10,1,"identity","treatm","normal"]
[120,"sh_out","Sockerhalt",null,"sugar content","After storage","(%)",1,1,10,1,"identity","treatm","normal"]
[121,"sy_out","Sockermängd",null,"Sugar","per box (AS)","(kg)",1,1,10,1,"identity","treatm","normal"]
[122,"inv_out","Invert",null,"Invert","After storage","(mmol/kg beet)",1,1,10,1,"identity","treatm","normal"]
[123,"ts_out","Torrsubstans",null,"Dry matter","After storage","(%)",1,1,10,1,"identity","treatm","normal"]
[124,"blaa_out","Blåtal",null,"Amino-N","After storage","mg/100g sugar",1,1,10,1,"identity","treatm","normal"]
[125,"kan_out","K+Na",null,"K+Na","After storage",null,1,1,10,1,"identity","treatm","normal"]
[126,"S_loss1","Sockerförlust",null,"Sugar loss","After storage","(%)",1,1,10,1,"identity","treatm","normal"]
[127,"S_loss2","Sockerförlust",null,"Sugar loss","After storage","(%)",1,1,10,1,"identity","treatm","normal"]
[128,"pen_avg","Penetrometer",null,"penetrometer","early","Mpa",1,1,14,1,"identity","treatm","normal",0]
[129,"pen_avg_a2","Penetrometer",null,"penetrometer","late","Mpa",1,1,14,1,"identity","treatm","normal",0]
[130,"NDVI","NDVI","NDVI","NDVI","Measurement 1","Ground cover",1,1,10,1,"identity","treatm","normal",0]
[131,"NDVI_a2","NDVI","NDVI","NDVI","Measurement 2","Ground cover",1,1,10,1,"identity","treatm","normal",0]
[132,"NDVI_a3","NDVI","NDVI","NDVI","Measurement 3","Ground cover",1,1,10,1,"identity","treatm","normal",0]
[133,"NDVI_a4","NDVI","NDVI","NDVI","Measurement 4","Ground cover",1,1,10,1,"identity","treatm","normal",0]
[134,"NDVI_a5","NDVI","NDVI","NDVI","Measurement 5","Ground cover",1,1,10,1,"identity","treatm","normal",0]
[135,"Cardy_N","N Konc","N Konc","quick sensor","Measurement 1"," ppm No3",1,1,10,1,"identity","treatm","normal",0]
[136,"Cardy_Na","Na Konc","Na Konc","quick sensor","Measurement 1"," ppm Na3",1,1,10,1,"identity","treatm","normal",0]
[137,"Cardy_K","K Konc","K Konc","quick sensor","Measurement 1"," ppm K",1,1,10,1,"identity","treatm","normal",0]
[138,"Cardy_N_a2","N Konc","N Konc","quick sensor","Measurement 2"," ppm No3",1,1,10,1,"identity","treatm","normal",0]
[139,"Cardy_Na_a2","Na Konc","Na Konc","quick sensor","Measurement 2"," ppm Na3",1,1,10,1,"identity","treatm","normal",0]
[140,"Cardy_K_a2","K Konc","K Konc","quick sensor","Measurement 2"," ppm K",1,1,10,1,"identity","treatm","normal",0]
[141,"Cardy_N_a3","N Konc","N Konc","quick sensor","Measurement 3"," ppm No3",1,1,10,1,"identity","treatm","normal",0]
[142,"Cardy_Na_a3","Na Konc","Na Konc","quick sensor","Measurement 3"," ppm Na3",1,1,10,1,"identity","treatm","normal",0]
[143,"Cardy_K_a3","K Konc","K Konc","quick sensor","Measurement 3"," ppm K",1,1,10,1,"identity","treatm","normal",0]
[144,"Cardy_N_a4","N Konc","N Konc","quick sensor","Measurement 4"," ppm No3",1,1,10,1,"identity","treatm","normal",0]
[145,"Cardy_Na_a4","Na Konc","Na Konc","quick sensor","Measurement 4"," ppm Na3",1,1,10,1,"identity","treatm","normal",0]
[146,"Cardy_K_a4","K Konc","K Konc","quick sensor","Measurement 4"," ppm K",1,1,10,1,"identity","treatm","normal",0]
[147,"br_weight_in1","Vikt ",null,"Weight","Before storage","(kg)",1,1,10,1,"identity","treatm","normal"]
[148,"sh_in","Sockerhalt",null,"sugar content","Before storage","(%)",1,1,10,1,"identity","treatm","normal"]
[149,"renpct_in","Renhet",null,"Cleaness","Before storage","(%)",1,1,10,1,"identity","treatm","normal"]
[150,"sy_in","Sockermängd",null,"Sugar","per box (BS)","(kg)",1,1,10,1,"identity","treatm","normal"]
[151,"inv_in","Invert",null,"Invert","Before storage","(mmol/kg beet)",1,1,10,1,"identity","treatm","normal"]
[152,"ts_in","Torrsubstans",null,"Dry matter","Before storage","(%)",1,1,10,1,"identity","treatm","normal"]
[153,"br_weight_out1","Vikt ",null,"Weight","After storage","(kg)",1,1,10,1,"identity","treatm","normal"]
[154,"sh_out","Sockerhalt",null,"sugar content","After storage","(%)",1,1,10,1,"identity","treatm","normal"]
[155,"sy_out","Sockermängd",null,"Sugar","per box (AS)","(kg)",1,1,10,1,"identity","treatm","normal"]
[156,"inv_out","Invert",null,"Invert","After storage","(mmol/kg beet)",1,1,10,1,"identity","treatm","normal"]
[157,"ts_out","Torrsubstans",null,"Dry matter","After storage","(%)",1,1,10,1,"identity","treatm","normal"]
[158,"blaa_out","Blåtal",null,"Amino-N","After storage","mg/100g sugar",1,1,10,1,"identity","treatm","normal"]
[159,"kan_out","K+Na",null,"K+Na","After storage",null,1,1,10,1,"identity","treatm","normal"]
[160,"S_loss1","Sockerförlust",null,"Sugar loss","After storage","(%)",1,1,10,1,"identity","treatm","normal"]
[161,"S_loss2","Sockerförlust",null,"Sugar loss","After storage","(%)",1,1,10,1,"identity","treatm","normal"]
[162,"Type",null,null,null,null,null,1,1,10,1,"identity","treatm","normal"]
[163,"AAAAA_PROC_1","Total marktäckning","Total marktäckning","Total ground cover","Below, June","% ",1,1,14,1,"identity","treatm","normal"]
[164,"AAAAA_2UB","Total marktäckning","Total marktäckning","Total ground cover","Below, Aug","% ",1,1,14,1,"identity","treatm","normal"]
[165,"AAAAA_2ÖB","Total marktäckning","Total marktäckning","Total ground cover","Above, Aug","% ",1,1,14,1,"identity","treatm","normal"]
[166,"gen_phy","Generell procentuell fytotox ","Generell procentuell fytotox ","gen_phy","First grading","1-30",1,1,16,1,"identity","treatm","normal"]
[167,"thi_phy","Glesning","Glesning","thi_phy","First grading","%",1,1,8,1,"identity","treatm","normal"]
[168,"vor_phy","Biomassareduktion","Biomassareduktion","vor_phy","First grading","%",1,1,12,1,"identity","treatm","normal"]
[169,"stu_phy","Eftersatt höjdtillväxt ","Eftersatt höjdtillväxt ","stu_phy","First grading","%",1,1,14,1,"identity","treatm","normal"]
[170,"ble_phy","Vitfärgning","Vitfärgning","ble_phy","First grading","%",1,1,10,1,"identity","treatm","normal"]
[171,"chl_phy","Kloros","Kloros","chl_phy","First grading","%",1,1,8,1,"identity","treatm","normal"]
[172,"nec_phy","Nekros","Nekros","nec_phy","First grading","%",1,1,8,1,"identity","treatm","normal"]
[173,"def_phy","Missbildade blad ","Missbildade blad ","def_phy","First grading","%",1,1,14,1,"identity","treatm","normal"]
[174,"phy_ldr","Tappade blad ","Tappade blad ","phy_ldr","First grading","%",1,1,14,1,"identity","treatm","normal"]
[175,"phy_war","Försvagat vaxlager ","Försvagat vaxlager ","phy_war","First grading","%",1,1,16,1,"identity","treatm","normal"]
[176,"phy_del","Försenad tillväxt ","Försenad tillväxt ","phy_del","First grading","%",1,1,14,1,"identity","treatm","normal"]
[177,"gen_phy_a2","Generell procentuell fytotox ","Generell procentuell fytotox ","gen_phy","Second grading","1-30",1,1,16,1,"identity","treatm","normal"]
[178,"thi_phy_a2","Glesning","Glesning","thi_phy","Second grading","%",1,1,8,1,"identity","treatm","normal"]
[179,"vor_phy_a2","Biomassareduktion","Biomassareduktion","vor_phy","Second grading","%",1,1,12,1,"identity","treatm","normal"]
[180,"stu_phy_a2","Eftersatt höjdtillväxt ","Eftersatt höjdtillväxt ","stu_phy","Second grading","%",1,1,14,1,"identity","treatm","normal"]
[181,"ble_phy_a2","Vitfärgning","Vitfärgning","ble_phy","Second grading","%",1,1,10,1,"identity","treatm","normal"]
[182,"chl_phy_a2","Kloros","Kloros","chl_phy","Second grading","%",1,1,8,1,"identity","treatm","normal"]
[183,"nec_phy_a2","Nekros","Nekros","nec_phy","Second grading","%",1,1,8,1,"identity","treatm","normal"]
[184,"def_phy_a2","Missbildade blad ","Missbildade blad ","def_phy","Second grading","%",1,1,14,1,"identity","treatm","normal"]
[185,"phy_ldr_a2","Tappade blad ","Tappade blad ","phy_ldr","Second grading","%",1,1,14,1,"identity","treatm","normal"]
[186,"phy_war_a2","Försvagat vaxlager ","Försvagat vaxlager ","phy_war","Second grading","%",1,1,16,1,"identity","treatm","normal"]
[187,"phy_del_a2","Försenad tillväxt ","Försenad tillväxt ","phy_del","Second grading","%",1,1,14,1,"identity","treatm","normal"]
[188,"gen_phy_a3","Generell procentuell fytotox ","Generell procentuell fytotox ","gen_phy","Third grading","1-30",1,1,16,1,"identity","treatm","normal"]
[189,"thi_phy_a3","Glesning","Glesning","thi_phy","Third grading","%",1,1,8,1,"identity","treatm","normal"]
[190,"vor_phy_a3","Biomassareduktion","Biomassareduktion","vor_phy","Third grading","%",1,1,12,1,"identity","treatm","normal"]
[191,"stu_phy_a3","Eftersatt höjdtillväxt ","Eftersatt höjdtillväxt ","stu_phy","Third grading","%",1,1,14,1,"identity","treatm","normal"]
[192,"ble_phy_a3","Vitfärgning","Vitfärgning","ble_phy","Third grading","%",1,1,10,1,"identity","treatm","normal"]
[193,"chl_phy_a3","Kloros","Kloros","chl_phy","Third grading","%",1,1,8,1,"identity","treatm","normal"]
[194,"nec_phy_a3","Nekros","Nekros","nec_phy","Third grading","%",1,1,8,1,"identity","treatm","normal"]
[195,"def_phy_a3","Missbildade blad ","Missbildade blad ","def_phy","Third grading","%",1,1,14,1,"identity","treatm","normal"]
[196,"phy_ldr_a3","Tappade blad ","Tappade blad ","phy_ldr","Third grading","%",1,1,14,1,"identity","treatm","normal"]
[197,"phy_war_a3","Försvagat vaxlager ","Försvagat vaxlager ","phy_war","Third grading","%",1,1,16,1,"identity","treatm","normal"]
[198,"phy_del_a3","Försenad tillväxt ","Försenad tillväxt ","phy_del","Third grading","%",1,1,14,1,"identity","treatm","normal"]
[199,"fytotox_chl_1","Kloros",null,"fytotox clorosis","TII+10d","% ",1,1,14,1,"identity","treatm","normal"]
[200,"fytotox_chl_2","Kloros",null,"fytotox clorosis","TIV+10d","% ",1,1,14,1,"identity","treatm","normal"]
[201,"fytotox_red_1","Tillväxthämning",null,"Growth reduction","TII+10d","% ",1,1,14,1,"identity","treatm","normal"]
[202,"fytotox_red_2","Tillväxthämning",null,"Growth reduction","TIV+10d","% ",1,1,14,1,"identity","treatm","normal"]
[203,"fytotox_def_1","Deformerade blad",null,"fytotox deformation","TII+10d","% ",1,1,14,1,"identity","treatm","normal"]
[204,"fytotox_def_2","Deformerade blad",null,"fytotox deformation","TIV+10d","% ",1,1,14,1,"identity","treatm","normal"]
[205,"AAAAA_proc_obs1","Total marktäckning","Total marktäckning","Total ground cover","First grading","% ",1,1,14,1,"identity","treatm","normal"]
[206,"AEOPO_proc_obs1","Kirskål","Skvalderkål","AEOPO","First grading","% ",1,1,14,1,"identity","treatm","normal"]
[207,"AETCY_proc_obs1","Vildpersilja","Hundepersille","AETCY","First grading","% ",1,1,14,1,"identity","treatm","normal"]
[208,"AGRRE_proc_obs1","Kvickrot","Almindelig Kvik","AGRRE","First grading","% ",1,1,14,1,"identity","treatm","normal"]
[209,"ALOMY_proc_obs1","Renkavle","Ager-Rævehale","ALOMY","First grading","% ",1,1,14,1,"identity","treatm","normal"]
[210,"ANCAR_proc_obs1","Fårtunga","Krumhals","ANCAR","First grading","% ",1,1,14,1,"identity","treatm","normal"]
[211,"ANGAR_proc_obs1","Rödmire","Arve rød","ANGAR","First grading","% ",1,1,14,1,"identity","treatm","normal"]
[212,"APESV_proc_obs1","Åkerven","Vindaks","APESV","First grading","% ",1,1,14,1,"identity","treatm","normal"]
[213,"ATXPA_proc_obs1","Vägmålla","Svinemaelde","ATXPA","First grading","% ",1,1,14,1,"identity","treatm","normal"]
[214,"AVEFA_proc_obs1","Flyghavre","Flyve-Havre","AVEFA","First grading","% ",1,1,14,1,"identity","treatm","normal"]
[215,"AVESA_proc_obs1","Spillhavre","Havre","AVESA","First grading","% ",1,1,14,1,"identity","treatm","normal"]
[216,"BBBAN_proc_obs1","Tvåhjbl Arter","Ukrudt tokimbladet","BBBAN","First grading","% ",1,1,14,1,"identity","treatm","normal"]
[217,"BRSNN_proc_obs1","Spillraps","Raps","BRSNN","First grading","% ",1,1,14,1,"identity","treatm","normal"]
[218,"CAPBP_proc_obs1","Lomme","Hyrdetaske","CAPBP","First grading","% ",1,1,14,1,"identity","treatm","normal"]
[219,"CENCY_proc_obs1","Blåklint","Kornblomst","CENCY","First grading","% ",1,1,14,1,"identity","treatm","normal"]
[220,"CHEAL_proc_obs1","Svinmålla","Gaasefod hvidmelet","CHEAL","First grading","% ",1,1,14,1,"identity","treatm","normal"]
[221,"CHESS_proc_obs1","Målla","Gåsefod-Arter","CHESS","First grading","% ",1,1,14,1,"identity","treatm","normal"]
[222,"CIRAR_proc_obs1","Åkertistel","Agertidsel","CIRAR","First grading","% ",1,1,14,1,"identity","treatm","normal"]
[223,"CONAR_proc_obs1","Åkervinda","Ager-Snerle","CONAR","First grading","% ",1,1,14,1,"identity","treatm","normal"]
[224,"CRDAR_proc_obs1","Sandtrav","Almindelig Sandkarse","CRDAR","First grading","% ",1,1,14,1,"identity","treatm","normal"]
[225,"ECHCG_proc_obs1","Hönshirs","Almindelig Hanespore","ECHCG","First grading","% ",1,1,14,1,"identity","treatm","normal"]
[226,"EPHEX_proc_obs1","Småtörel","Vortemaelk liden","EPHEX","First grading","% ",1,1,14,1,"identity","treatm","normal"]
[227,"EPHHE_proc_obs1","Revormstörel","Skaerm-Vortemaelk","EPHHE","First grading","% ",1,1,14,1,"identity","treatm","normal"]
[228,"EQUAR_proc_obs1","Åkerfräken","Ager-Padderok","EQUAR","First grading","% ",1,1,14,1,"identity","treatm","normal"]
[229,"EROCI_proc_obs1","Skatnäva","Hejrenaeb","EROCI","First grading","% ",1,1,14,1,"identity","treatm","normal"]
[230,"FUMOF_proc_obs1","Jordrök","Laege-Jordrøg","FUMOF","First grading","% ",1,1,14,1,"identity","treatm","normal"]
[231,"GAEBI_proc_obs1","Toppdån","Skov-Hanekro","GAEBI","First grading","% ",1,1,14,1,"identity","treatm","normal"]
[232,"GAELA_proc_obs1","Mjukdån","Sand-Hanekro","GAELA","First grading","% ",1,1,14,1,"identity","treatm","normal"]
[233,"GAESP_proc_obs1","Hampdån","Hamp-Hanekro","GAESP","First grading","% ",1,1,14,1,"identity","treatm","normal"]
[234,"GAESS_proc_obs1","Dån","Hanekro","GAESS","First grading","% ",1,1,14,1,"identity","treatm","normal"]
[235,"GAETE_proc_obs1","Pipdån","Almindelig Hanekro","GAETE","First grading","% ",1,1,14,1,"identity","treatm","normal"]
[236,"GALAP_proc_obs1","Snärjmåra","Burresnerre","GALAP","First grading","% ",1,1,14,1,"identity","treatm","normal"]
[237,"GERDI_proc_obs1","Fliknäva","Skov-Galtetand Stachys","GERDI","First grading","% ",1,1,14,1,"identity","treatm","normal"]
[238,"GERMO_proc_obs1","Mjuknäva","Kær-Galtetand Stachys","GERMO","First grading","% ",1,1,14,1,"identity","treatm","normal"]
[239,"GERPU_proc_obs1","Sparvnäva","Storkenaeb liden","GERPU","First grading","% ",1,1,14,1,"identity","treatm","normal"]
[240,"GERRO_proc_obs1","Stinknäva","Stinkende Storkenæb","GERRO","First grading","% ",1,1,14,1,"identity","treatm","normal"]
[241,"GERSS_proc_obs1","Näva","Storkenæb","GERSS","First grading","% ",1,1,14,1,"identity","treatm","normal"]
[242,"GGGAN_proc_obs1","Gräs, Annuell","Græs","GGGAN","First grading","% ",1,1,14,1,"identity","treatm","normal"]
[243,"HORVW_proc_obs1","Spillkorn","Korn spild","HORVW","First grading","% ",1,1,14,1,"identity","treatm","normal"]
[244,"LAMAL_proc_obs1","Vitplister","Døvnælde","LAMAL","First grading","% ",1,1,14,1,"identity","treatm","normal"]
[245,"LAMAM_proc_obs1","Mjukplister","Liden Torskemund","LAMAM","First grading","% ",1,1,14,1,"identity","treatm","normal"]
[246,"LAMIN_proc_obs1","Flikplister","Fliget Tvetand","LAMIN","First grading","% ",1,1,14,1,"identity","treatm","normal"]
[247,"LAMPU_proc_obs1","Rödplister","Tvetand roed","LAMPU","First grading","% ",1,1,14,1,"identity","treatm","normal"]
[248,"LAMSS_proc_obs1","Plister","Tvetand andre","LAMSS","First grading","% ",1,1,14,1,"identity","treatm","normal"]
[249,"LAPCO_proc_obs1","Harkål","Haremad","LAPCO","First grading","% ",1,1,14,1,"identity","treatm","normal"]
[250,"LOLMU_proc_obs1","Ital Rajgräs","Rajgræs, Italiensk","LOLMU","First grading","% ",1,1,14,1,"identity","treatm","normal"]
[251,"LOLPE_proc_obs1","Eng Rajgräs","Almindelig Rajgraes","LOLPE","First grading","% ",1,1,14,1,"identity","treatm","normal"]
[252,"MATCH_proc_obs1","Kamomill","Kamille vellugtende","MATCH","First grading","% ",1,1,14,1,"identity","treatm","normal"]
[253,"MATIN_proc_obs1","Baldersbrå","Kamille lugtloes","MATIN","First grading","% ",1,1,14,1,"identity","treatm","normal"]
[254,"MATSU_proc_obs1","Gatkamomill","Kamille skive","MATSU","First grading","% ",1,1,14,1,"identity","treatm","normal"]
[255,"MYOAR_proc_obs1","Åkerförgätmigej","Forglemmigej mark","MYOAR","First grading","% ",1,1,14,1,"identity","treatm","normal"]
[256,"MYOSS_proc_obs1","Förgätmigej","Forglemmigej","MYOSS","First grading","% ",1,1,14,1,"identity","treatm","normal"]
[257,"PAPRH_proc_obs1","Kornvallmo","Valmue Korn","PAPRH","First grading","% ",1,1,14,1,"identity","treatm","normal"]
[258,"PAPSS_proc_obs1","Vallmo","Valmue","PAPSS","First grading","% ",1,1,14,1,"identity","treatm","normal"]
[259,"PLALA_proc_obs1","Svartkämpar","Lancet-Vejbred","PLALA","First grading","% ",1,1,14,1,"identity","treatm","normal"]
[260,"PLAMA_proc_obs1","Groblad","Glat Vejbred","PLAMA","First grading","% ",1,1,14,1,"identity","treatm","normal"]
[261,"PLAME_proc_obs1","Rödkämpar","Dunet Vejbred","PLAME","First grading","% ",1,1,14,1,"identity","treatm","normal"]
[262,"POAAN_proc_obs1","Vitgröe","Rapgraes enaarig","POAAN","First grading","% ",1,1,14,1,"identity","treatm","normal"]
[263,"POLAM_proc_obs1","Vattenpilört","Vand-Pileurt","POLAM","First grading","% ",1,1,14,1,"identity","treatm","normal"]
[264,"POLAV_proc_obs1","Trampört","Pileurt vej","POLAV","First grading","% ",1,1,14,1,"identity","treatm","normal"]
[265,"POLCO_proc_obs1","Åkerbinda","Snerle-Pileurt","POLCO","First grading","% ",1,1,14,1,"identity","treatm","normal"]
[266,"POLCO_proc_obs1","åkerbinda","Pileurt snerle","POLCO","First grading","% ",1,1,14,1,"identity","treatm","normal"]
[267,"POLHY_proc_obs1","Bitterpilört","Bidende Pileurt","POLHY","First grading","% ",1,1,14,1,"identity","treatm","normal"]
[268,"POLLA_proc_obs1","Vanlig Pilört","Pileurt bleg","POLLA","First grading","% ",1,1,14,1,"identity","treatm","normal"]
[269,"POLPE_proc_obs1","Åkerpilört","Pileurt fersken","POLPE","First grading","% ",1,1,14,1,"identity","treatm","normal"]
[270,"RAPRA_proc_obs1","Åkerrättika","Kiddike","RAPRA","First grading","% ",1,1,14,1,"identity","treatm","normal"]
[271,"SENVU_proc_obs1","Korsört","Brandbaeger almindelig","SENVU","First grading","% ",1,1,14,1,"identity","treatm","normal"]
[272,"SILNO_proc_obs1","Nattglim","Limurt nat","SILNO","First grading","% ",1,1,14,1,"identity","treatm","normal"]
[273,"SINAR_proc_obs1","Åkersenap","Agersennep","SINAR","First grading","% ",1,1,14,1,"identity","treatm","normal"]
[274,"SOLNI_proc_obs1","Nattskatta","Natskygge sort","SOLNI","First grading","% ",1,1,14,1,"identity","treatm","normal"]
[275,"SOLTU_proc_obs1","Potatis","Kartoffel","SOLTU","First grading","% ",1,1,14,1,"identity","treatm","normal"]
[276,"SONAR_proc_obs1","Åkermolke","Svinemaelk ager","SONAR","First grading","% ",1,1,14,1,"identity","treatm","normal"]
[277,"SSYOF_proc_obs1","Vägsenap","Rød Tvetand","SSYOF","First grading","% ",1,1,14,1,"identity","treatm","normal"]
[278,"STAPA_proc_obs1","Knölsyska","Kær-Galtetand","STAPA","First grading","% ",1,1,14,1,"identity","treatm","normal"]
[279,"STEME_proc_obs1","Våtarv","Fuglegraes","STEME","First grading","% ",1,1,14,1,"identity","treatm","normal"]
[280,"TAROF_proc_obs1","Maskros","Almindelig Mælkebøtte","TAROF","First grading","% ",1,1,14,1,"identity","treatm","normal"]
[281,"THLAR_proc_obs1","Penningört","Almindelig Pengeurt","THLAR","First grading","% ",1,1,14,1,"identity","treatm","normal"]
[282,"TRZAW_proc_obs1","Spillvete","Hvede (spildkorn)","TRZAW","First grading","% ",1,1,14,1,"identity","treatm","normal"]
[283,"TTTTT_proc_obs1","Ogräs Ospec","Ukrudt uspecificeret","TTTTT","First grading","% ",1,1,14,1,"identity","treatm","normal"]
[284,"TUSFA_proc_obs1","Hästhov","Følfod","TUSFA","First grading","% ",1,1,14,1,"identity","treatm","normal"]
[285,"URTUR_proc_obs1","Etternässla","Liden Naelde","URTUR","First grading","% ",1,1,14,1,"identity","treatm","normal"]
[286,"VERAG_proc_obs1","Åkerveronika","Flerfarvet Ærenpris","VERAG","First grading","% ",1,1,14,1,"identity","treatm","normal"]
[287,"VERAR_proc_obs1","Fältveronika","Aerenpris mark","VERAR","First grading","% ",1,1,14,1,"identity","treatm","normal"]
[288,"VERHE_proc_obs1","Murgrönsveronika","Aerenspris vedbend","VERHE","First grading","% ",1,1,14,1,"identity","treatm","normal"]
[289,"VERPE_proc_obs1","Trädgårdsveronika","Aerenpris storkronet","VERPE","First grading","% ",1,1,14,1,"identity","treatm","normal"]
[290,"VERSS_proc_obs1","Veronika","Stedmoderblomst","VERSS","First grading","% ",1,1,14,1,"identity","treatm","normal"]
[291,"VIOAR_proc_obs1","Åkerviol","Ager-Stedmoderblomst","VIOAR","First grading","% ",1,1,14,1,"identity","treatm","normal"]
[292,"VIOSS_proc_obs1","Viol","Viol","VIOSS","First grading","% ",1,1,14,1,"identity","treatm","normal"]
[293,"AAAAA_proc_obs1_a2","Total marktäckning","Total marktäckning","Total ground cover","Second grading","% ",1,1,14,1,"identity","treatm","normal"]
[294,"AEOPO_proc_obs1_a2","Kirskål","Skvalderkål","AEOPO","Second grading","% ",1,1,14,1,"identity","treatm","normal"]
[295,"AETCY_proc_obs1_a2","Vildpersilja","Hundepersille","AETCY","Second grading","% ",1,1,14,1,"identity","treatm","normal"]
[296,"AGRRE_proc_obs1_a2","Kvickrot","Almindelig Kvik","AGRRE","Second grading","% ",1,1,14,1,"identity","treatm","normal"]
[297,"ALOMY_proc_obs1_a2","Renkavle","Ager-Rævehale","ALOMY","Second grading","% ",1,1,14,1,"identity","treatm","normal"]
[298,"ANCAR_proc_obs1_a2","Fårtunga","Krumhals","ANCAR","Second grading","% ",1,1,14,1,"identity","treatm","normal"]
[299,"ANGAR_proc_obs1_a2","Rödmire","Arve rød","ANGAR","Second grading","% ",1,1,14,1,"identity","treatm","normal"]
[300,"APESV_proc_obs1_a2","Åkerven","Vindaks","APESV","Second grading","% ",1,1,14,1,"identity","treatm","normal"]
[301,"ATXPA_proc_obs1_a2","Vägmålla","Svinemaelde","ATXPA","Second grading","% ",1,1,14,1,"identity","treatm","normal"]
[302,"AVEFA_proc_obs1_a2","Flyghavre","Flyve-Havre","AVEFA","Second grading","% ",1,1,14,1,"identity","treatm","normal"]
[303,"AVESA_proc_obs1_a2","Spillhavre","Havre","AVESA","Second grading","% ",1,1,14,1,"identity","treatm","normal"]
[304,"BBBAN_proc_obs1_a2","Tvåhjbl Arter","Ukrudt tokimbladet","BBBAN","Second grading","% ",1,1,14,1,"identity","treatm","normal"]
[305,"BRSNN_proc_obs1_a2","Spillraps","Raps","BRSNN","Second grading","% ",1,1,14,1,"identity","treatm","normal"]
[306,"CAPBP_proc_obs1_a2","Lomme","Hyrdetaske","CAPBP","Second grading","% ",1,1,14,1,"identity","treatm","normal"]
[307,"CENCY_proc_obs1_a2","Blåklint","Kornblomst","CENCY","Second grading","% ",1,1,14,1,"identity","treatm","normal"]
[308,"CHEAL_proc_obs1_a2","Svinmålla","Gaasefod hvidmelet","CHEAL","Second grading","% ",1,1,14,1,"identity","treatm","normal"]
[309,"CHESS_proc_obs1_a2","Målla","Gåsefod-Arter","CHESS","Second grading","% ",1,1,14,1,"identity","treatm","normal"]
[310,"CIRAR_proc_obs1_a2","Åkertistel","Agertidsel","CIRAR","Second grading","% ",1,1,14,1,"identity","treatm","normal"]
[311,"CONAR_proc_obs1_a2","Åkervinda","Ager-Snerle","CONAR","Second grading","% ",1,1,14,1,"identity","treatm","normal"]
[312,"CRDAR_proc_obs1_a2","Sandtrav","Almindelig Sandkarse","CRDAR","Second grading","% ",1,1,14,1,"identity","treatm","normal"]
[313,"ECHCG_proc_obs1_a2","Hönshirs","Almindelig Hanespore","ECHCG","Second grading","% ",1,1,14,1,"identity","treatm","normal"]
[314,"EPHEX_proc_obs1_a2","Småtörel","Vortemaelk liden","EPHEX","Second grading","% ",1,1,14,1,"identity","treatm","normal"]
[315,"EPHHE_proc_obs1_a2","Revormstörel","Skaerm-Vortemaelk","EPHHE","Second grading","% ",1,1,14,1,"identity","treatm","normal"]
[316,"EQUAR_proc_obs1_a2","Åkerfräken","Ager-Padderok","EQUAR","Second grading","% ",1,1,14,1,"identity","treatm","normal"]
[317,"EROCI_proc_obs1_a2","Skatnäva","Hejrenaeb","EROCI","Second grading","% ",1,1,14,1,"identity","treatm","normal"]
[318,"FUMOF_proc_obs1_a2","Jordrök","Laege-Jordrøg","FUMOF","Second grading","% ",1,1,14,1,"identity","treatm","normal"]
[319,"GAEBI_proc_obs1_a2","Toppdån","Skov-Hanekro","GAEBI","Second grading","% ",1,1,14,1,"identity","treatm","normal"]
[320,"GAELA_proc_obs1_a2","Mjukdån","Sand-Hanekro","GAELA","Second grading","% ",1,1,14,1,"identity","treatm","normal"]
[321,"GAESP_proc_obs1_a2","Hampdån","Hamp-Hanekro","GAESP","Second grading","% ",1,1,14,1,"identity","treatm","normal"]
[322,"GAESS_proc_obs1_a2","Dån","Hanekro","GAESS","Second grading","% ",1,1,14,1,"identity","treatm","normal"]
[323,"GAETE_proc_obs1_a2","Pipdån","Almindelig Hanekro","GAETE","Second grading","% ",1,1,14,1,"identity","treatm","normal"]
[324,"GALAP_proc_obs1_a2","Snärjmåra","Burresnerre","GALAP","Second grading","% ",1,1,14,1,"identity","treatm","normal"]
[325,"GERDI_proc_obs1_a2","Fliknäva","Skov-Galtetand Stachys","GERDI","Second grading","% ",1,1,14,1,"identity","treatm","normal"]
[326,"GERMO_proc_obs1_a2","Mjuknäva","Kær-Galtetand Stachys","GERMO","Second grading","% ",1,1,14,1,"identity","treatm","normal"]
[327,"GERPU_proc_obs1_a2","Sparvnäva","Storkenaeb liden","GERPU","Second grading","% ",1,1,14,1,"identity","treatm","normal"]
[328,"GERRO_proc_obs1_a2","Stinknäva","Stinkende Storkenæb","GERRO","Second grading","% ",1,1,14,1,"identity","treatm","normal"]
[329,"GERSS_proc_obs1_a2","Näva","Storkenæb","GERSS","Second grading","% ",1,1,14,1,"identity","treatm","normal"]
[330,"GGGAN_proc_obs1_a2","Gräs, Annuell","Græs","GGGAN","Second grading","% ",1,1,14,1,"identity","treatm","normal"]
[331,"HORVW_proc_obs1_a2","Spillkorn","Korn spild","HORVW","Second grading","% ",1,1,14,1,"identity","treatm","normal"]
[332,"LAMAL_proc_obs1_a2","Vitplister","Døvnælde","LAMAL","Second grading","% ",1,1,14,1,"identity","treatm","normal"]
[333,"LAMAM_proc_obs1_a2","Mjukplister","Liden Torskemund","LAMAM","Second grading","% ",1,1,14,1,"identity","treatm","normal"]
[334,"LAMIN_proc_obs1_a2","Flikplister","Fliget Tvetand","LAMIN","Second grading","% ",1,1,14,1,"identity","treatm","normal"]
[335,"LAMPU_proc_obs1_a2","Rödplister","Tvetand roed","LAMPU","Second grading","% ",1,1,14,1,"identity","treatm","normal"]
[336,"LAMSS_proc_obs1_a2","Plister","Tvetand andre","LAMSS","Second grading","% ",1,1,14,1,"identity","treatm","normal"]
[337,"LAPCO_proc_obs1_a2","Harkål","Haremad","LAPCO","Second grading","% ",1,1,14,1,"identity","treatm","normal"]
[338,"LOLMU_proc_obs1_a2","Ital Rajgräs","Rajgræs, Italiensk","LOLMU","Second grading","% ",1,1,14,1,"identity","treatm","normal"]
[339,"LOLPE_proc_obs1_a2","Eng Rajgräs","Almindelig Rajgraes","LOLPE","Second grading","% ",1,1,14,1,"identity","treatm","normal"]
[340,"MATCH_proc_obs1_a2","Kamomill","Kamille vellugtende","MATCH","Second grading","% ",1,1,14,1,"identity","treatm","normal"]
[341,"MATIN_proc_obs1_a2","Baldersbrå","Kamille lugtloes","MATIN","Second grading","% ",1,1,14,1,"identity","treatm","normal"]
[342,"MATSU_proc_obs1_a2","Gatkamomill","Kamille skive","MATSU","Second grading","% ",1,1,14,1,"identity","treatm","normal"]
[343,"MYOAR_proc_obs1_a2","Åkerförgätmigej","Forglemmigej mark","MYOAR","Second grading","% ",1,1,14,1,"identity","treatm","normal"]
[344,"MYOSS_proc_obs1_a2","Förgätmigej","Forglemmigej","MYOSS","Second grading","% ",1,1,14,1,"identity","treatm","normal"]
[345,"PAPRH_proc_obs1_a2","Kornvallmo","Valmue Korn","PAPRH","Second grading","% ",1,1,14,1,"identity","treatm","normal"]
[346,"PAPSS_proc_obs1_a2","Vallmo","Valmue","PAPSS","Second grading","% ",1,1,14,1,"identity","treatm","normal"]
[347,"PLALA_proc_obs1_a2","Svartkämpar","Lancet-Vejbred","PLALA","Second grading","% ",1,1,14,1,"identity","treatm","normal"]
[348,"PLAMA_proc_obs1_a2","Groblad","Glat Vejbred","PLAMA","Second grading","% ",1,1,14,1,"identity","treatm","normal"]
[349,"PLAME_proc_obs1_a2","Rödkämpar","Dunet Vejbred","PLAME","Second grading","% ",1,1,14,1,"identity","treatm","normal"]
[350,"POAAN_proc_obs1_a2","Vitgröe","Rapgraes enaarig","POAAN","Second grading","% ",1,1,14,1,"identity","treatm","normal"]
[351,"POLAM_proc_obs1_a2","Vattenpilört","Vand-Pileurt","POLAM","Second grading","% ",1,1,14,1,"identity","treatm","normal"]
[352,"POLAV_proc_obs1_a2","Trampört","Pileurt vej","POLAV","Second grading","% ",1,1,14,1,"identity","treatm","normal"]
[353,"POLCO_proc_obs1_a2","Åkerbinda","Snerle-Pileurt","POLCO","Second grading","% ",1,1,14,1,"identity","treatm","normal"]
[354,"POLCO_proc_obs1_a2","åkerbinda","Pileurt snerle","POLCO","Second grading","% ",1,1,14,1,"identity","treatm","normal"]
[355,"POLHY_proc_obs1_a2","Bitterpilört","Bidende Pileurt","POLHY","Second grading","% ",1,1,14,1,"identity","treatm","normal"]
[356,"POLLA_proc_obs1_a2","Vanlig Pilört","Pileurt bleg","POLLA","Second grading","% ",1,1,14,1,"identity","treatm","normal"]
[357,"POLPE_proc_obs1_a2","Åkerpilört","Pileurt fersken","POLPE","Second grading","% ",1,1,14,1,"identity","treatm","normal"]
[358,"RAPRA_proc_obs1_a2","Åkerrättika","Kiddike","RAPRA","Second grading","% ",1,1,14,1,"identity","treatm","normal"]
[359,"SENVU_proc_obs1_a2","Korsört","Brandbaeger almindelig","SENVU","Second grading","% ",1,1,14,1,"identity","treatm","normal"]
[360,"SILNO_proc_obs1_a2","Nattglim","Limurt nat","SILNO","Second grading","% ",1,1,14,1,"identity","treatm","normal"]
[361,"SINAR_proc_obs1_a2","Åkersenap","Agersennep","SINAR","Second grading","% ",1,1,14,1,"identity","treatm","normal"]
[362,"SOLNI_proc_obs1_a2","Nattskatta","Natskygge sort","SOLNI","Second grading","% ",1,1,14,1,"identity","treatm","normal"]
[363,"SOLTU_proc_obs1_a2","Potatis","Kartoffel","SOLTU","Second grading","% ",1,1,14,1,"identity","treatm","normal"]
[364,"SONAR_proc_obs1_a2","Åkermolke","Svinemaelk ager","SONAR","Second grading","% ",1,1,14,1,"identity","treatm","normal"]
[365,"SSYOF_proc_obs1_a2","Vägsenap","Rød Tvetand","SSYOF","Second grading","% ",1,1,14,1,"identity","treatm","normal"]
[366,"STAPA_proc_obs1_a2","Knölsyska","Kær-Galtetand","STAPA","Second grading","% ",1,1,14,1,"identity","treatm","normal"]
[367,"STEME_proc_obs1_a2","Våtarv","Fuglegraes","STEME","Second grading","% ",1,1,14,1,"identity","treatm","normal"]
[368,"TAROF_proc_obs1_a2","Maskros","Almindelig Mælkebøtte","TAROF","Second grading","% ",1,1,14,1,"identity","treatm","normal"]
[369,"THLAR_proc_obs1_a2","Penningört","Almindelig Pengeurt","THLAR","Second grading","% ",1,1,14,1,"identity","treatm","normal"]
[370,"TRZAW_proc_obs1_a2","Spillvete","Hvede (spildkorn)","TRZAW","Second grading","% ",1,1,14,1,"identity","treatm","normal"]
[371,"TTTTT_proc_obs1_a2","Ogräs Ospec","Ukrudt uspecificeret","TTTTT","Second grading","% ",1,1,14,1,"identity","treatm","normal"]
[372,"TUSFA_proc_obs1_a2","Hästhov","Følfod","TUSFA","Second grading","% ",1,1,14,1,"identity","treatm","normal"]
[373,"URTUR_proc_obs1_a2","Etternässla","Liden Naelde","URTUR","Second grading","% ",1,1,14,1,"identity","treatm","normal"]
[374,"VERAG_proc_obs1_a2","Åkerveronika","Flerfarvet Ærenpris","VERAG","Second grading","% ",1,1,14,1,"identity","treatm","normal"]
[375,"VERAR_proc_obs1_a2","Fältveronika","Aerenpris mark","VERAR","Second grading","% ",1,1,14,1,"identity","treatm","normal"]
[376,"VERHE_proc_obs1_a2","Murgrönsveronika","Aerenspris vedbend","VERHE","Second grading","% ",1,1,14,1,"identity","treatm","normal"]
[377,"VERPE_proc_obs1_a2","Trädgårdsveronika","Aerenpris storkronet","VERPE","Second grading","% ",1,1,14,1,"identity","treatm","normal"]
[378,"VERSS_proc_obs1_a2","Veronika","Stedmoderblomst","VERSS","Second grading","% ",1,1,14,1,"identity","treatm","normal"]
[379,"VIOAR_proc_obs1_a2","Åkerviol","Ager-Stedmoderblomst","VIOAR","Second grading","% ",1,1,14,1,"identity","treatm","normal"]
[380,"VIOSS_proc_obs1_a2","Viol","Viol","VIOSS","Second grading","% ",1,1,14,1,"identity","treatm","normal"]
[381,"AEOPO_an_obs1","Kirskål","Skvalderkål","AEOPO","First grading","Nr",1,1,14,1,"identity","treatm","normal"]
[382,"AETCY_an_obs1","Vildpersilja","Hundepersille","AETCY","First grading","Nr",1,1,14,1,"identity","treatm","normal"]
[383,"AGRRE_an_obs1","Kvickrot","Almindelig Kvik","AGRRE","First grading","Nr",1,1,14,1,"identity","treatm","normal"]
[384,"ALOMY_an_obs1","Renkavle","Ager-Rævehale","ALOMY","First grading","Nr",1,1,14,1,"identity","treatm","normal"]
[385,"ANCAR_an_obs1","Fårtunga","Krumhals","ANCAR","First grading","Nr",1,1,14,1,"identity","treatm","normal"]
[386,"ANGAR_an_obs1","Rödmire","Arve rød","ANGAR","First grading","Nr",1,1,14,1,"identity","treatm","normal"]
[387,"APESV_an_obs1","Åkerven","Vindaks","APESV","First grading","Nr",1,1,14,1,"identity","treatm","normal"]
[388,"ATXPA_an_obs1","Vägmålla","Svinemaelde","ATXPA","First grading","Nr",1,1,14,1,"identity","treatm","normal"]
[389,"AVEFA_an_obs1","Flyghavre","Flyve-Havre","AVEFA","First grading","Nr",1,1,14,1,"identity","treatm","normal"]
[390,"AVESA_an_obs1","Spillhavre","Havre","AVESA","First grading","Nr",1,1,14,1,"identity","treatm","normal"]
[391,"BBBAN_an_obs1","Tvåhjbl Arter","Ukrudt tokimbladet","BBBAN","First grading","Nr",1,1,14,1,"identity","treatm","normal"]
[392,"BRSNN_an_obs1","Spillraps","Raps","BRSNN","First grading","Nr",1,1,14,1,"identity","treatm","normal"]
[393,"CAPBP_an_obs1","Lomme","Hyrdetaske","CAPBP","First grading","Nr",1,1,14,1,"identity","treatm","normal"]
[394,"CENCY_an_obs1","Blåklint","Kornblomst","CENCY","First grading","Nr",1,1,14,1,"identity","treatm","normal"]
[395,"CHEAL_an_obs1","Svinmålla","Gaasefod hvidmelet","CHEAL","First grading","Nr",1,1,14,1,"identity","treatm","normal"]
[396,"CHESS_an_obs1","Målla","Gåsefod-Arter","CHESS","First grading","Nr",1,1,14,1,"identity","treatm","normal"]
[397,"CIRAR_an_obs1","Åkertistel","Agertidsel","CIRAR","First grading","Nr",1,1,14,1,"identity","treatm","normal"]
[398,"CONAR_an_obs1","Åkervinda","Ager-Snerle","CONAR","First grading","Nr",1,1,14,1,"identity","treatm","normal"]
[399,"CRDAR_an_obs1","Sandtrav","Almindelig Sandkarse","CRDAR","First grading","Nr",1,1,14,1,"identity","treatm","normal"]
[400,"ECHCG_an_obs1","Hönshirs","Almindelig Hanespore","ECHCG","First grading","Nr",1,1,14,1,"identity","treatm","normal"]
[401,"EPHEX_an_obs1","Småtörel","Vortemaelk liden","EPHEX","First grading","Nr",1,1,14,1,"identity","treatm","normal"]
[402,"EPHHE_an_obs1","Revormstörel","Skaerm-Vortemaelk","EPHHE","First grading","Nr",1,1,14,1,"identity","treatm","normal"]
[403,"EQUAR_an_obs1","Åkerfräken","Ager-Padderok","EQUAR","First grading","Nr",1,1,14,1,"identity","treatm","normal"]
[404,"EROCI_an_obs1","Skatnäva","Hejrenaeb","EROCI","First grading","Nr",1,1,14,1,"identity","treatm","normal"]
[405,"FUMOF_an_obs1","Jordrök","Laege-Jordrøg","FUMOF","First grading","Nr",1,1,14,1,"identity","treatm","normal"]
[406,"GAEBI_an_obs1","Toppdån","Skov-Hanekro","GAEBI","First grading","Nr",1,1,14,1,"identity","treatm","normal"]
[407,"GAELA_an_obs1","Mjukdån","Sand-Hanekro","GAELA","First grading","Nr",1,1,14,1,"identity","treatm","normal"]
[408,"GAESP_an_obs1","Hampdån","Hamp-Hanekro","GAESP","First grading","Nr",1,1,14,1,"identity","treatm","normal"]
[409,"GAESS_an_obs1","Dån","Hanekro","GAESS","First grading","Nr",1,1,14,1,"identity","treatm","normal"]
[410,"GAETE_an_obs1","Pipdån","Almindelig Hanekro","GAETE","First grading","Nr",1,1,14,1,"identity","treatm","normal"]
[411,"GALAP_an_obs1","Snärjmåra","Burresnerre","GALAP","First grading","Nr",1,1,14,1,"identity","treatm","normal"]
[412,"GERDI_an_obs1","Fliknäva","Skov-Galtetand Stachys","GERDI","First grading","Nr",1,1,14,1,"identity","treatm","normal"]
[413,"GERMO_an_obs1","Mjuknäva","Kær-Galtetand Stachys","GERMO","First grading","Nr",1,1,14,1,"identity","treatm","normal"]
[414,"GERPU_an_obs1","Sparvnäva","Storkenaeb liden","GERPU","First grading","Nr",1,1,14,1,"identity","treatm","normal"]
[415,"GERRO_an_obs1","Stinknäva","Stinkende Storkenæb","GERRO","First grading","Nr",1,1,14,1,"identity","treatm","normal"]
[416,"GERSS_an_obs1","Näva","Storkenæb","GERSS","First grading","Nr",1,1,14,1,"identity","treatm","normal"]
[417,"GGGAN_an_obs1","Gräs, Annuell","Græs","GGGAN","First grading","Nr",1,1,14,1,"identity","treatm","normal"]
[418,"HORVW_an_obs1","Spillkorn","Korn spild","HORVW","First grading","Nr",1,1,14,1,"identity","treatm","normal"]
[419,"LAMAL_an_obs1","Vitplister","Døvnælde","LAMAL","First grading","Nr",1,1,14,1,"identity","treatm","normal"]
[420,"LAMAM_an_obs1","Mjukplister","Liden Torskemund","LAMAM","First grading","Nr",1,1,14,1,"identity","treatm","normal"]
[421,"LAMIN_an_obs1","Flikplister","Fliget Tvetand","LAMIN","First grading","Nr",1,1,14,1,"identity","treatm","normal"]
[422,"LAMPU_an_obs1","Rödplister","Tvetand roed","LAMPU","First grading","Nr",1,1,14,1,"identity","treatm","normal"]
[423,"LAMSS_an_obs1","Plister","Tvetand andre","LAMSS","First grading","Nr",1,1,14,1,"identity","treatm","normal"]
[424,"LAPCO_an_obs1","Harkål","Haremad","LAPCO","First grading","Nr",1,1,14,1,"identity","treatm","normal"]
[425,"LOLMU_an_obs1","Ital Rajgräs","Rajgræs, Italiensk","LOLMU","First grading","Nr",1,1,14,1,"identity","treatm","normal"]
[426,"LOLPE_an_obs1","Eng Rajgräs","Almindelig Rajgraes","LOLPE","First grading","Nr",1,1,14,1,"identity","treatm","normal"]
[427,"MATCH_an_obs1","Kamomill","Kamille vellugtende","MATCH","First grading","Nr",1,1,14,1,"identity","treatm","normal"]
[428,"MATIN_an_obs1","Baldersbrå","Kamille lugtloes","MATIN","First grading","Nr",1,1,14,1,"identity","treatm","normal"]
[429,"MATSU_an_obs1","Gatkamomill","Kamille skive","MATSU","First grading","Nr",1,1,14,1,"identity","treatm","normal"]
[430,"MYOAR_an_obs1","Åkerförgätmigej","Forglemmigej mark","MYOAR","First grading","Nr",1,1,14,1,"identity","treatm","normal"]
[431,"MYOSS_an_obs1","Förgätmigej","Forglemmigej","MYOSS","First grading","Nr",1,1,14,1,"identity","treatm","normal"]
[432,"PAPRH_an_obs1","Kornvallmo","Valmue Korn","PAPRH","First grading","Nr",1,1,14,1,"identity","treatm","normal"]
[433,"PAPSS_an_obs1","Vallmo","Valmue","PAPSS","First grading","Nr",1,1,14,1,"identity","treatm","normal"]
[434,"PLALA_an_obs1","Svartkämpar","Lancet-Vejbred","PLALA","First grading","Nr",1,1,14,1,"identity","treatm","normal"]
[435,"PLAMA_an_obs1","Groblad","Glat Vejbred","PLAMA","First grading","Nr",1,1,14,1,"identity","treatm","normal"]
[436,"PLAME_an_obs1","Rödkämpar","Dunet Vejbred","PLAME","First grading","Nr",1,1,14,1,"identity","treatm","normal"]
[437,"POAAN_an_obs1","Vitgröe","Rapgraes enaarig","POAAN","First grading","Nr",1,1,14,1,"identity","treatm","normal"]
[438,"POLAM_an_obs1","Vattenpilört","Vand-Pileurt","POLAM","First grading","Nr",1,1,14,1,"identity","treatm","normal"]
[439,"POLAV_an_obs1","Trampört","Pileurt vej","POLAV","First grading","Nr",1,1,14,1,"identity","treatm","normal"]
[440,"POLCO_an_obs1","Åkerbinda","Snerle-Pileurt","POLCO","First grading","Nr",1,1,14,1,"identity","treatm","normal"]
[441,"POLCO_an_obs1","åkerbinda","Pileurt snerle","POLCO","First grading","Nr",1,1,14,1,"identity","treatm","normal"]
[442,"POLHY_an_obs1","Bitterpilört","Bidende Pileurt","POLHY","First grading","Nr",1,1,14,1,"identity","treatm","normal"]
[443,"POLLA_an_obs1","Vanlig Pilört","Pileurt bleg","POLLA","First grading","Nr",1,1,14,1,"identity","treatm","normal"]
[444,"POLPE_an_obs1","Åkerpilört","Pileurt fersken","POLPE","First grading","Nr",1,1,14,1,"identity","treatm","normal"]
[445,"RAPRA_an_obs1","Åkerrättika","Kiddike","RAPRA","First grading","Nr",1,1,14,1,"identity","treatm","normal"]
[446,"SENVU_an_obs1","Korsört","Brandbaeger almindelig","SENVU","First grading","Nr",1,1,14,1,"identity","treatm","normal"]
[447,"SILNO_an_obs1","Nattglim","Limurt nat","SILNO","First grading","Nr",1,1,14,1,"identity","treatm","normal"]
[448,"SINAR_an_obs1","Åkersenap","Agersennep","SINAR","First grading","Nr",1,1,14,1,"identity","treatm","normal"]
[449,"SOLNI_an_obs1","Nattskatta","Natskygge sort","SOLNI","First grading","Nr",1,1,14,1,"identity","treatm","normal"]
[450,"SOLTU_an_obs1","Potatis","Kartoffel","SOLTU","First grading","Nr",1,1,14,1,"identity","treatm","normal"]
[451,"SONAR_an_obs1","Åkermolke","Svinemaelk ager","SONAR","First grading","Nr",1,1,14,1,"identity","treatm","normal"]
[452,"SSYOF_an_obs1","Vägsenap","Rød Tvetand","SSYOF","First grading","Nr",1,1,14,1,"identity","treatm","normal"]
[453,"STAPA_an_obs1","Knölsyska","Kær-Galtetand","STAPA","First grading","Nr",1,1,14,1,"identity","treatm","normal"]
[454,"STEME_an_obs1","Våtarv","Fuglegraes","STEME","First grading","Nr",1,1,14,1,"identity","treatm","normal"]
[455,"TAROF_an_obs1","Maskros","Almindelig Mælkebøtte","TAROF","First grading","Nr",1,1,14,1,"identity","treatm","normal"]
[456,"THLAR_an_obs1","Penningört","Almindelig Pengeurt","THLAR","First grading","Nr",1,1,14,1,"identity","treatm","normal"]
[457,"TRZAW_an_obs1","Spillvete","Hvede (spildkorn)","TRZAW","First grading","Nr",1,1,14,1,"identity","treatm","normal"]
[458,"TTTTT_an_obs1","Ogräs Ospec","Ukrudt uspecificeret","TTTTT","First grading","Nr",1,1,14,1,"identity","treatm","normal"]
[459,"TUSFA_an_obs1","Hästhov","Følfod","TUSFA","First grading","Nr",1,1,14,1,"identity","treatm","normal"]
[460,"URTUR_an_obs1","Etternässla","Liden Naelde","URTUR","First grading","Nr",1,1,14,1,"identity","treatm","normal"]
[461,"VERAG_an_obs1","Åkerveronika","Flerfarvet Ærenpris","VERAG","First grading","Nr",1,1,14,1,"identity","treatm","normal"]
[462,"VERAR_an_obs1","Fältveronika","Aerenpris mark","VERAR","First grading","Nr",1,1,14,1,"identity","treatm","normal"]
[463,"VERHE_an_obs1","Murgrönsveronika","Aerenspris vedbend","VERHE","First grading","Nr",1,1,14,1,"identity","treatm","normal"]
[464,"VERPE_an_obs1","Trädgårdsveronika","Aerenpris storkronet","VERPE","First grading","Nr",1,1,14,1,"identity","treatm","normal"]
[465,"VERSS_an_obs1","Veronika","Stedmoderblomst","VERSS","First grading","Nr",1,1,14,1,"identity","treatm","normal"]
[466,"VIOAR_an_obs1","Åkerviol","Ager-Stedmoderblomst","VIOAR","First grading","Nr",1,1,14,1,"identity","treatm","normal"]
[467,"VIOSS_an_obs1","Viol","Viol","VIOSS","First grading","Nr",1,1,14,1,"identity","treatm","normal"]
[468,"AEOPO_an_obs1_a2","Kirskål","Skvalderkål","AEOPO","Second grading","Nr",1,1,14,1,"identity","treatm","normal"]
[469,"AETCY_an_obs1_a2","Vildpersilja","Hundepersille","AETCY","Second grading","Nr",1,1,14,1,"identity","treatm","normal"]
[470,"AGRRE_an_obs1_a2","Kvickrot","Almindelig Kvik","AGRRE","Second grading","Nr",1,1,14,1,"identity","treatm","normal"]
[471,"ALOMY_an_obs1_a2","Renkavle","Ager-Rævehale","ALOMY","Second grading","Nr",1,1,14,1,"identity","treatm","normal"]
[472,"ANCAR_an_obs1_a2","Fårtunga","Krumhals","ANCAR","Second grading","Nr",1,1,14,1,"identity","treatm","normal"]
[473,"ANGAR_an_obs1_a2","Rödmire","Arve rød","ANGAR","Second grading","Nr",1,1,14,1,"identity","treatm","normal"]
[474,"APESV_an_obs1_a2","Åkerven","Vindaks","APESV","Second grading","Nr",1,1,14,1,"identity","treatm","normal"]
[475,"ATXPA_an_obs1_a2","Vägmålla","Svinemaelde","ATXPA","Second grading","Nr",1,1,14,1,"identity","treatm","normal"]
[476,"AVEFA_an_obs1_a2","Flyghavre","Flyve-Havre","AVEFA","Second grading","Nr",1,1,14,1,"identity","treatm","normal"]
[477,"AVESA_an_obs1_a2","Spillhavre","Havre","AVESA","Second grading","Nr",1,1,14,1,"identity","treatm","normal"]
[478,"BBBAN_an_obs1_a2","Tvåhjbl Arter","Ukrudt tokimbladet","BBBAN","Second grading","Nr",1,1,14,1,"identity","treatm","normal"]
[479,"BRSNN_an_obs1_a2","Spillraps","Raps","BRSNN","Second grading","Nr",1,1,14,1,"identity","treatm","normal"]
[480,"CAPBP_an_obs1_a2","Lomme","Hyrdetaske","CAPBP","Second grading","Nr",1,1,14,1,"identity","treatm","normal"]
[481,"CENCY_an_obs1_a2","Blåklint","Kornblomst","CENCY","Second grading","Nr",1,1,14,1,"identity","treatm","normal"]
[482,"CHEAL_an_obs1_a2","Svinmålla","Gaasefod hvidmelet","CHEAL","Second grading","Nr",1,1,14,1,"identity","treatm","normal"]
[483,"CHESS_an_obs1_a2","Målla","Gåsefod-Arter","CHESS","Second grading","Nr",1,1,14,1,"identity","treatm","normal"]
[484,"CIRAR_an_obs1_a2","Åkertistel","Agertidsel","CIRAR","Second grading","Nr",1,1,14,1,"identity","treatm","normal"]
[485,"CONAR_an_obs1_a2","Åkervinda","Ager-Snerle","CONAR","Second grading","Nr",1,1,14,1,"identity","treatm","normal"]
[486,"CRDAR_an_obs1_a2","Sandtrav","Almindelig Sandkarse","CRDAR","Second grading","Nr",1,1,14,1,"identity","treatm","normal"]
[487,"ECHCG_an_obs1_a2","Hönshirs","Almindelig Hanespore","ECHCG","Second grading","Nr",1,1,14,1,"identity","treatm","normal"]
[488,"EPHEX_an_obs1_a2","Småtörel","Vortemaelk liden","EPHEX","Second grading","Nr",1,1,14,1,"identity","treatm","normal"]
[489,"EPHHE_an_obs1_a2","Revormstörel","Skaerm-Vortemaelk","EPHHE","Second grading","Nr",1,1,14,1,"identity","treatm","normal"]
[490,"EQUAR_an_obs1_a2","Åkerfräken","Ager-Padderok","EQUAR","Second grading","Nr",1,1,14,1,"identity","treatm","normal"]
[491,"EROCI_an_obs1_a2","Skatnäva","Hejrenaeb","EROCI","Second grading","Nr",1,1,14,1,"identity","treatm","normal"]
[492,"FUMOF_an_obs1_a2","Jordrök","Laege-Jordrøg","FUMOF","Second grading","Nr",1,1,14,1,"identity","treatm","normal"]
[493,"GAEBI_an_obs1_a2","Toppdån","Skov-Hanekro","GAEBI","Second grading","Nr",1,1,14,1,"identity","treatm","normal"]
[494,"GAELA_an_obs1_a2","Mjukdån","Sand-Hanekro","GAELA","Second grading","Nr",1,1,14,1,"identity","treatm","normal"]
[495,"GAESP_an_obs1_a2","Hampdån","Hamp-Hanekro","GAESP","Second grading","Nr",1,1,14,1,"identity","treatm","normal"]
[496,"GAESS_an_obs1_a2","Dån","Hanekro","GAESS","Second grading","Nr",1,1,14,1,"identity","treatm","normal"]
[497,"GAETE_an_obs1_a2","Pipdån","Almindelig Hanekro","GAETE","Second grading","Nr",1,1,14,1,"identity","treatm","normal"]
[498,"GALAP_an_obs1_a2","Snärjmåra","Burresnerre","GALAP","Second grading","Nr",1,1,14,1,"identity","treatm","normal"]
[499,"GERDI_an_obs1_a2","Fliknäva","Skov-Galtetand Stachys","GERDI","Second grading","Nr",1,1,14,1,"identity","treatm","normal"]
[500,"GERMO_an_obs1_a2","Mjuknäva","Kær-Galtetand Stachys","GERMO","Second grading","Nr",1,1,14,1,"identity","treatm","normal"]
[501,"GERPU_an_obs1_a2","Sparvnäva","Storkenaeb liden","GERPU","Second grading","Nr",1,1,14,1,"identity","treatm","normal"]
[502,"GERRO_an_obs1_a2","Stinknäva","Stinkende Storkenæb","GERRO","Second grading","Nr",1,1,14,1,"identity","treatm","normal"]
[503,"GERSS_an_obs1_a2","Näva","Storkenæb","GERSS","Second grading","Nr",1,1,14,1,"identity","treatm","normal"]
[504,"GGGAN_an_obs1_a2","Gräs, Annuell","Græs","GGGAN","Second grading","Nr",1,1,14,1,"identity","treatm","normal"]
[505,"HORVW_an_obs1_a2","Spillkorn","Korn spild","HORVW","Second grading","Nr",1,1,14,1,"identity","treatm","normal"]
[506,"LAMAL_an_obs1_a2","Vitplister","Døvnælde","LAMAL","Second grading","Nr",1,1,14,1,"identity","treatm","normal"]
[507,"LAMAM_an_obs1_a2","Mjukplister","Liden Torskemund","LAMAM","Second grading","Nr",1,1,14,1,"identity","treatm","normal"]
[508,"LAMIN_an_obs1_a2","Flikplister","Fliget Tvetand","LAMIN","Second grading","Nr",1,1,14,1,"identity","treatm","normal"]
[509,"LAMPU_an_obs1_a2","Rödplister","Tvetand roed","LAMPU","Second grading","Nr",1,1,14,1,"identity","treatm","normal"]
[510,"LAMSS_an_obs1_a2","Plister","Tvetand andre","LAMSS","Second grading","Nr",1,1,14,1,"identity","treatm","normal"]
[511,"LAPCO_an_obs1_a2","Harkål","Haremad","LAPCO","Second grading","Nr",1,1,14,1,"identity","treatm","normal"]
[512,"LOLMU_an_obs1_a2","Ital Rajgräs","Rajgræs, Italiensk","LOLMU","Second grading","Nr",1,1,14,1,"identity","treatm","normal"]
[513,"LOLPE_an_obs1_a2","Eng Rajgräs","Almindelig Rajgraes","LOLPE","Second grading","Nr",1,1,14,1,"identity","treatm","normal"]
[514,"MATCH_an_obs1_a2","Kamomill","Kamille vellugtende","MATCH","Second grading","Nr",1,1,14,1,"identity","treatm","normal"]
[515,"MATIN_an_obs1_a2","Baldersbrå","Kamille lugtloes","MATIN","Second grading","Nr",1,1,14,1,"identity","treatm","normal"]
[516,"MATSU_an_obs1_a2","Gatkamomill","Kamille skive","MATSU","Second grading","Nr",1,1,14,1,"identity","treatm","normal"]
[517,"MYOAR_an_obs1_a2","Åkerförgätmigej","Forglemmigej mark","MYOAR","Second grading","Nr",1,1,14,1,"identity","treatm","normal"]
[518,"MYOSS_an_obs1_a2","Förgätmigej","Forglemmigej","MYOSS","Second grading","Nr",1,1,14,1,"identity","treatm","normal"]
[519,"PAPRH_an_obs1_a2","Kornvallmo","Valmue Korn","PAPRH","Second grading","Nr",1,1,14,1,"identity","treatm","normal"]
[520,"PAPSS_an_obs1_a2","Vallmo","Valmue","PAPSS","Second grading","Nr",1,1,14,1,"identity","treatm","normal"]
[521,"PLALA_an_obs1_a2","Svartkämpar","Lancet-Vejbred","PLALA","Second grading","Nr",1,1,14,1,"identity","treatm","normal"]
[522,"PLAMA_an_obs1_a2","Groblad","Glat Vejbred","PLAMA","Second grading","Nr",1,1,14,1,"identity","treatm","normal"]
[523,"PLAME_an_obs1_a2","Rödkämpar","Dunet Vejbred","PLAME","Second grading","Nr",1,1,14,1,"identity","treatm","normal"]
[524,"POAAN_an_obs1_a2","Vitgröe","Rapgraes enaarig","POAAN","Second grading","Nr",1,1,14,1,"identity","treatm","normal"]
[525,"POLAM_an_obs1_a2","Vattenpilört","Vand-Pileurt","POLAM","Second grading","Nr",1,1,14,1,"identity","treatm","normal"]
[526,"POLAV_an_obs1_a2","Trampört","Pileurt vej","POLAV","Second grading","Nr",1,1,14,1,"identity","treatm","normal"]
[527,"POLCO_an_obs1_a2","Åkerbinda","Snerle-Pileurt","POLCO","Second grading","Nr",1,1,14,1,"identity","treatm","normal"]
[528,"POLCO_an_obs1_a2","åkerbinda","Pileurt snerle","POLCO","Second grading","Nr",1,1,14,1,"identity","treatm","normal"]
[529,"POLHY_an_obs1_a2","Bitterpilört","Bidende Pileurt","POLHY","Second grading","Nr",1,1,14,1,"identity","treatm","normal"]
[530,"POLLA_an_obs1_a2","Vanlig Pilört","Pileurt bleg","POLLA","Second grading","Nr",1,1,14,1,"identity","treatm","normal"]
[531,"POLPE_an_obs1_a2","Åkerpilört","Pileurt fersken","POLPE","Second grading","Nr",1,1,14,1,"identity","treatm","normal"]
[532,"RAPRA_an_obs1_a2","Åkerrättika","Kiddike","RAPRA","Second grading","Nr",1,1,14,1,"identity","treatm","normal"]
[533,"SENVU_an_obs1_a2","Korsört","Brandbaeger almindelig","SENVU","Second grading","Nr",1,1,14,1,"identity","treatm","normal"]
[534,"SILNO_an_obs1_a2","Nattglim","Limurt nat","SILNO","Second grading","Nr",1,1,14,1,"identity","treatm","normal"]
[535,"SINAR_an_obs1_a2","Åkersenap","Agersennep","SINAR","Second grading","Nr",1,1,14,1,"identity","treatm","normal"]
[536,"SOLNI_an_obs1_a2","Nattskatta","Natskygge sort","SOLNI","Second grading","Nr",1,1,14,1,"identity","treatm","normal"]
[537,"SOLTU_an_obs1_a2","Potatis","Kartoffel","SOLTU","Second grading","Nr",1,1,14,1,"identity","treatm","normal"]
[538,"SONAR_an_obs1_a2","Åkermolke","Svinemaelk ager","SONAR","Second grading","Nr",1,1,14,1,"identity","treatm","normal"]
[539,"SSYOF_an_obs1_a2","Vägsenap","Rød Tvetand","SSYOF","Second grading","Nr",1,1,14,1,"identity","treatm","normal"]
[540,"STAPA_an_obs1_a2","Knölsyska","Kær-Galtetand","STAPA","Second grading","Nr",1,1,14,1,"identity","treatm","normal"]
[541,"STEME_an_obs1_a2","Våtarv","Fuglegraes","STEME","Second grading","Nr",1,1,14,1,"identity","treatm","normal"]
[542,"TAROF_an_obs1_a2","Maskros","Almindelig Mælkebøtte","TAROF","Second grading","Nr",1,1,14,1,"identity","treatm","normal"]
[543,"THLAR_an_obs1_a2","Penningört","Almindelig Pengeurt","THLAR","Second grading","Nr",1,1,14,1,"identity","treatm","normal"]
[544,"TRZAW_an_obs1_a2","Spillvete","Hvede (spildkorn)","TRZAW","Second grading","Nr",1,1,14,1,"identity","treatm","normal"]
[545,"TTTTT_an_obs1_a2","Ogräs Ospec","Ukrudt uspecificeret","TTTTT","Second grading","Nr",1,1,14,1,"identity","treatm","normal"]
[546,"TUSFA_an_obs1_a2","Hästhov","Følfod","TUSFA","Second grading","Nr",1,1,14,1,"identity","treatm","normal"]
[547,"URTUR_an_obs1_a2","Etternässla","Liden Naelde","URTUR","Second grading","Nr",1,1,14,1,"identity","treatm","normal"]
[548,"VERAG_an_obs1_a2","Åkerveronika","Flerfarvet Ærenpris","VERAG","Second grading","Nr",1,1,14,1,"identity","treatm","normal"]
[549,"VERAR_an_obs1_a2","Fältveronika","Aerenpris mark","VERAR","Second grading","Nr",1,1,14,1,"identity","treatm","normal"]
[550,"VERHE_an_obs1_a2","Murgrönsveronika","Aerenspris vedbend","VERHE","Second grading","Nr",1,1,14,1,"identity","treatm","normal"]
[551,"VERPE_an_obs1_a2","Trädgårdsveronika","Aerenpris storkronet","VERPE","Second grading","Nr",1,1,14,1,"identity","treatm","normal"]
[552,"VERSS_an_obs1_a2","Veronika","Stedmoderblomst","VERSS","Second grading","Nr",1,1,14,1,"identity","treatm","normal"]
[553,"VIOAR_an_obs1_a2","Åkerviol","Ager-Stedmoderblomst","VIOAR","Second grading","Nr",1,1,14,1,"identity","treatm","normal"]
[554,"VIOSS_an_obs1_a2","Viol","Viol","VIOSS","Second grading","Nr",1,1,14,1,"identity","treatm","normal"]
[555,"AEOPO_eff_obs1","Kirskål","Skvalderkål","AEOPO","First grading","Efficacy",1,1,14,1,"identity","treatm","normal"]
[556,"AETCY_eff_obs1","Vildpersilja","Hundepersille","AETCY","First grading","Efficacy",1,1,14,1,"identity","treatm","normal"]
[557,"AGRRE_eff_obs1","Kvickrot","Almindelig Kvik","AGRRE","First grading","Efficacy",1,1,14,1,"identity","treatm","normal"]
[558,"ALOMY_eff_obs1","Renkavle","Ager-Rævehale","ALOMY","First grading","Efficacy",1,1,14,1,"identity","treatm","normal"]
[559,"ANCAR_eff_obs1","Fårtunga","Krumhals","ANCAR","First grading","Efficacy",1,1,14,1,"identity","treatm","normal"]
[560,"ANGAR_eff_obs1","Rödmire","Arve rød","ANGAR","First grading","Efficacy",1,1,14,1,"identity","treatm","normal"]
[561,"APESV_eff_obs1","Åkerven","Vindaks","APESV","First grading","Efficacy",1,1,14,1,"identity","treatm","normal"]
[562,"ATXPA_eff_obs1","Vägmålla","Svinemaelde","ATXPA","First grading","Efficacy",1,1,14,1,"identity","treatm","normal"]
[563,"AVEFA_eff_obs1","Flyghavre","Flyve-Havre","AVEFA","First grading","Efficacy",1,1,14,1,"identity","treatm","normal"]
[564,"AVESA_eff_obs1","Spillhavre","Havre","AVESA","First grading","Efficacy",1,1,14,1,"identity","treatm","normal"]
[565,"BBBAN_eff_obs1","Tvåhjbl Arter","Ukrudt tokimbladet","BBBAN","First grading","Efficacy",1,1,14,1,"identity","treatm","normal"]
[566,"BRSNN_eff_obs1","Spillraps","Raps","BRSNN","First grading","Efficacy",1,1,14,1,"identity","treatm","normal"]
[567,"CAPBP_eff_obs1","Lomme","Hyrdetaske","CAPBP","First grading","Efficacy",1,1,14,1,"identity","treatm","normal"]
[568,"CENCY_eff_obs1","Blåklint","Kornblomst","CENCY","First grading","Efficacy",1,1,14,1,"identity","treatm","normal"]
[569,"CHEAL_eff_obs1","Svinmålla","Gaasefod hvidmelet","CHEAL","First grading","Efficacy",1,1,14,1,"identity","treatm","normal"]
[570,"CHESS_eff_obs1","Målla","Gåsefod-Arter","CHESS","First grading","Efficacy",1,1,14,1,"identity","treatm","normal"]
[571,"CIRAR_eff_obs1","Åkertistel","Agertidsel","CIRAR","First grading","Efficacy",1,1,14,1,"identity","treatm","normal"]
[572,"CONAR_eff_obs1","Åkervinda","Ager-Snerle","CONAR","First grading","Efficacy",1,1,14,1,"identity","treatm","normal"]
[573,"CRDAR_eff_obs1","Sandtrav","Almindelig Sandkarse","CRDAR","First grading","Efficacy",1,1,14,1,"identity","treatm","normal"]
[574,"ECHCG_eff_obs1","Hönshirs","Almindelig Hanespore","ECHCG","First grading","Efficacy",1,1,14,1,"identity","treatm","normal"]
[575,"EPHEX_eff_obs1","Småtörel","Vortemaelk liden","EPHEX","First grading","Efficacy",1,1,14,1,"identity","treatm","normal"]
[576,"EPHHE_eff_obs1","Revormstörel","Skaerm-Vortemaelk","EPHHE","First grading","Efficacy",1,1,14,1,"identity","treatm","normal"]
[577,"EQUAR_eff_obs1","Åkerfräken","Ager-Padderok","EQUAR","First grading","Efficacy",1,1,14,1,"identity","treatm","normal"]
[578,"EROCI_eff_obs1","Skatnäva","Hejrenaeb","EROCI","First grading","Efficacy",1,1,14,1,"identity","treatm","normal"]
[579,"FUMOF_eff_obs1","Jordrök","Laege-Jordrøg","FUMOF","First grading","Efficacy",1,1,14,1,"identity","treatm","normal"]
[580,"GAEBI_eff_obs1","Toppdån","Skov-Hanekro","GAEBI","First grading","Efficacy",1,1,14,1,"identity","treatm","normal"]
[581,"GAELA_eff_obs1","Mjukdån","Sand-Hanekro","GAELA","First grading","Efficacy",1,1,14,1,"identity","treatm","normal"]
[582,"GAESP_eff_obs1","Hampdån","Hamp-Hanekro","GAESP","First grading","Efficacy",1,1,14,1,"identity","treatm","normal"]
[583,"GAESS_eff_obs1","Dån","Hanekro","GAESS","First grading","Efficacy",1,1,14,1,"identity","treatm","normal"]
[584,"GAETE_eff_obs1","Pipdån","Almindelig Hanekro","GAETE","First grading","Efficacy",1,1,14,1,"identity","treatm","normal"]
[585,"GALAP_eff_obs1","Snärjmåra","Burresnerre","GALAP","First grading","Efficacy",1,1,14,1,"identity","treatm","normal"]
[586,"GERDI_eff_obs1","Fliknäva","Skov-Galtetand Stachys","GERDI","First grading","Efficacy",1,1,14,1,"identity","treatm","normal"]
[587,"GERMO_eff_obs1","Mjuknäva","Kær-Galtetand Stachys","GERMO","First grading","Efficacy",1,1,14,1,"identity","treatm","normal"]
[588,"GERPU_eff_obs1","Sparvnäva","Storkenaeb liden","GERPU","First grading","Efficacy",1,1,14,1,"identity","treatm","normal"]
[589,"GERRO_eff_obs1","Stinknäva","Stinkende Storkenæb","GERRO","First grading","Efficacy",1,1,14,1,"identity","treatm","normal"]
[590,"GERSS_eff_obs1","Näva","Storkenæb","GERSS","First grading","Efficacy",1,1,14,1,"identity","treatm","normal"]
[591,"GGGAN_eff_obs1","Gräs, Annuell","Græs","GGGAN","First grading","Efficacy",1,1,14,1,"identity","treatm","normal"]
[592,"HORVW_eff_obs1","Spillkorn","Korn spild","HORVW","First grading","Efficacy",1,1,14,1,"identity","treatm","normal"]
[593,"LAMAL_eff_obs1","Vitplister","Døvnælde","LAMAL","First grading","Efficacy",1,1,14,1,"identity","treatm","normal"]
[594,"LAMAM_eff_obs1","Mjukplister","Liden Torskemund","LAMAM","First grading","Efficacy",1,1,14,1,"identity","treatm","normal"]
[595,"LAMIN_eff_obs1","Flikplister","Fliget Tvetand","LAMIN","First grading","Efficacy",1,1,14,1,"identity","treatm","normal"]
[596,"LAMPU_eff_obs1","Rödplister","Tvetand roed","LAMPU","First grading","Efficacy",1,1,14,1,"identity","treatm","normal"]
[597,"LAMSS_eff_obs1","Plister","Tvetand andre","LAMSS","First grading","Efficacy",1,1,14,1,"identity","treatm","normal"]
[598,"LAPCO_eff_obs1","Harkål","Haremad","LAPCO","First grading","Efficacy",1,1,14,1,"identity","treatm","normal"]
[599,"LOLMU_eff_obs1","Ital Rajgräs","Rajgræs, Italiensk","LOLMU","First grading","Efficacy",1,1,14,1,"identity","treatm","normal"]
[600,"LOLPE_eff_obs1","Eng Rajgräs","Almindelig Rajgraes","LOLPE","First grading","Efficacy",1,1,14,1,"identity","treatm","normal"]
[601,"MATCH_eff_obs1","Kamomill","Kamille vellugtende","MATCH","First grading","Efficacy",1,1,14,1,"identity","treatm","normal"]
[602,"MATIN_eff_obs1","Baldersbrå","Kamille lugtloes","MATIN","First grading","Efficacy",1,1,14,1,"identity","treatm","normal"]
[603,"MATSU_eff_obs1","Gatkamomill","Kamille skive","MATSU","First grading","Efficacy",1,1,14,1,"identity","treatm","normal"]
[604,"MYOAR_eff_obs1","Åkerförgätmigej","Forglemmigej mark","MYOAR","First grading","Efficacy",1,1,14,1,"identity","treatm","normal"]
[605,"MYOSS_eff_obs1","Förgätmigej","Forglemmigej","MYOSS","First grading","Efficacy",1,1,14,1,"identity","treatm","normal"]
[606,"PAPRH_eff_obs1","Kornvallmo","Valmue Korn","PAPRH","First grading","Efficacy",1,1,14,1,"identity","treatm","normal"]
[607,"PAPSS_eff_obs1","Vallmo","Valmue","PAPSS","First grading","Efficacy",1,1,14,1,"identity","treatm","normal"]
[608,"PLALA_eff_obs1","Svartkämpar","Lancet-Vejbred","PLALA","First grading","Efficacy",1,1,14,1,"identity","treatm","normal"]
[609,"PLAMA_eff_obs1","Groblad","Glat Vejbred","PLAMA","First grading","Efficacy",1,1,14,1,"identity","treatm","normal"]
[610,"PLAME_eff_obs1","Rödkämpar","Dunet Vejbred","PLAME","First grading","Efficacy",1,1,14,1,"identity","treatm","normal"]
[611,"POAAN_eff_obs1","Vitgröe","Rapgraes enaarig","POAAN","First grading","Efficacy",1,1,14,1,"identity","treatm","normal"]
[612,"POLAM_eff_obs1","Vattenpilört","Vand-Pileurt","POLAM","First grading","Efficacy",1,1,14,1,"identity","treatm","normal"]
[613,"POLAV_eff_obs1","Trampört","Pileurt vej","POLAV","First grading","Efficacy",1,1,14,1,"identity","treatm","normal"]
[614,"POLCO_eff_obs1","Åkerbinda","Snerle-Pileurt","POLCO","First grading","Efficacy",1,1,14,1,"identity","treatm","normal"]
[615,"POLCO_eff_obs1","åkerbinda","Pileurt snerle","POLCO","First grading","Efficacy",1,1,14,1,"identity","treatm","normal"]
[616,"POLHY_eff_obs1","Bitterpilört","Bidende Pileurt","POLHY","First grading","Efficacy",1,1,14,1,"identity","treatm","normal"]
[617,"POLLA_eff_obs1","Vanlig Pilört","Pileurt bleg","POLLA","First grading","Efficacy",1,1,14,1,"identity","treatm","normal"]
[618,"POLPE_eff_obs1","Åkerpilört","Pileurt fersken","POLPE","First grading","Efficacy",1,1,14,1,"identity","treatm","normal"]
[619,"RAPRA_eff_obs1","Åkerrättika","Kiddike","RAPRA","First grading","Efficacy",1,1,14,1,"identity","treatm","normal"]
[620,"SENVU_eff_obs1","Korsört","Brandbaeger almindelig","SENVU","First grading","Efficacy",1,1,14,1,"identity","treatm","normal"]
[621,"SILNO_eff_obs1","Nattglim","Limurt nat","SILNO","First grading","Efficacy",1,1,14,1,"identity","treatm","normal"]
[622,"SINAR_eff_obs1","Åkersenap","Agersennep","SINAR","First grading","Efficacy",1,1,14,1,"identity","treatm","normal"]
[623,"SOLNI_eff_obs1","Nattskatta","Natskygge sort","SOLNI","First grading","Efficacy",1,1,14,1,"identity","treatm","normal"]
[624,"SOLTU_eff_obs1","Potatis","Kartoffel","SOLTU","First grading","Efficacy",1,1,14,1,"identity","treatm","normal"]
[625,"SONAR_eff_obs1","Åkermolke","Svinemaelk ager","SONAR","First grading","Efficacy",1,1,14,1,"identity","treatm","normal"]
[626,"SSYOF_eff_obs1","Vägsenap","Rød Tvetand","SSYOF","First grading","Efficacy",1,1,14,1,"identity","treatm","normal"]
[627,"STAPA_eff_obs1","Knölsyska","Kær-Galtetand","STAPA","First grading","Efficacy",1,1,14,1,"identity","treatm","normal"]
[628,"STEME_eff_obs1","Våtarv","Fuglegraes","STEME","First grading","Efficacy",1,1,14,1,"identity","treatm","normal"]
[629,"TAROF_eff_obs1","Maskros","Almindelig Mælkebøtte","TAROF","First grading","Efficacy",1,1,14,1,"identity","treatm","normal"]
[630,"THLAR_eff_obs1","Penningört","Almindelig Pengeurt","THLAR","First grading","Efficacy",1,1,14,1,"identity","treatm","normal"]
[631,"TRZAW_eff_obs1","Spillvete","Hvede (spildkorn)","TRZAW","First grading","Efficacy",1,1,14,1,"identity","treatm","normal"]
[632,"TTTTT_eff_obs1","Ogräs Ospec","Ukrudt uspecificeret","TTTTT","First grading","Efficacy",1,1,14,1,"identity","treatm","normal"]
[633,"TUSFA_eff_obs1","Hästhov","Følfod","TUSFA","First grading","Efficacy",1,1,14,1,"identity","treatm","normal"]
[634,"URTUR_eff_obs1","Etternässla","Liden Naelde","URTUR","First grading","Efficacy",1,1,14,1,"identity","treatm","normal"]
[635,"VERAG_eff_obs1","Åkerveronika","Flerfarvet Ærenpris","VERAG","First grading","Efficacy",1,1,14,1,"identity","treatm","normal"]
[636,"VERAR_eff_obs1","Fältveronika","Aerenpris mark","VERAR","First grading","Efficacy",1,1,14,1,"identity","treatm","normal"]
[637,"VERHE_eff_obs1","Murgrönsveronika","Aerenspris vedbend","VERHE","First grading","Efficacy",1,1,14,1,"identity","treatm","normal"]
[638,"VERPE_eff_obs1","Trädgårdsveronika","Aerenpris storkronet","VERPE","First grading","Efficacy",1,1,14,1,"identity","treatm","normal"]
[639,"VERSS_eff_obs1","Veronika","Stedmoderblomst","VERSS","First grading","Efficacy",1,1,14,1,"identity","treatm","normal"]
[640,"VIOAR_eff_obs1","Åkerviol","Ager-Stedmoderblomst","VIOAR","First grading","Efficacy",1,1,14,1,"identity","treatm","normal"]
[641,"VIOSS_eff_obs1","Viol","Viol","VIOSS","First grading","Efficacy",1,1,14,1,"identity","treatm","normal"]
[642,"AEOPO_eff_obs1_a2","Total marktäckning","Total marktäckning","Total ground cover","Second grading","Efficacy",1,1,14,1,"identity","treatm","normal"]
[643,"AETCY_eff_obs1_a2","Kirskål","Skvalderkål","AEOPO","Second grading","Efficacy",1,1,14,1,"identity","treatm","normal"]
[644,"AGRRE_eff_obs1_a2","Vildpersilja","Hundepersille","AETCY","Second grading","Efficacy",1,1,14,1,"identity","treatm","normal"]
[645,"ALOMY_eff_obs1_a2","Kvickrot","Almindelig Kvik","AGRRE","Second grading","Efficacy",1,1,14,1,"identity","treatm","normal"]
[646,"ANCAR_eff_obs1_a2","Renkavle","Ager-Rævehale","ALOMY","Second grading","Efficacy",1,1,14,1,"identity","treatm","normal"]
[647,"ANGAR_eff_obs1_a2","Fårtunga","Krumhals","ANCAR","Second grading","Efficacy",1,1,14,1,"identity","treatm","normal"]
[648,"APESV_eff_obs1_a2","Rödmire","Arve rød","ANGAR","Second grading","Efficacy",1,1,14,1,"identity","treatm","normal"]
[649,"ATXPA_eff_obs1_a2","Åkerven","Vindaks","APESV","Second grading","Efficacy",1,1,14,1,"identity","treatm","normal"]
[650,"AVEFA_eff_obs1_a2","Vägmålla","Svinemaelde","ATXPA","Second grading","Efficacy",1,1,14,1,"identity","treatm","normal"]
[651,"AVESA_eff_obs1_a2","Flyghavre","Flyve-Havre","AVEFA","Second grading","Efficacy",1,1,14,1,"identity","treatm","normal"]
[652,"BBBAN_eff_obs1_a2","Spillhavre","Havre","AVESA","Second grading","Efficacy",1,1,14,1,"identity","treatm","normal"]
[653,"BRSNN_eff_obs1_a2","Tvåhjbl Arter","Ukrudt tokimbladet","BBBAN","Second grading","Efficacy",1,1,14,1,"identity","treatm","normal"]
[654,"CAPBP_eff_obs1_a2","Spillraps","Raps","BRSNN","Second grading","Efficacy",1,1,14,1,"identity","treatm","normal"]
[655,"CENCY_eff_obs1_a2","Lomme","Hyrdetaske","CAPBP","Second grading","Efficacy",1,1,14,1,"identity","treatm","normal"]
[656,"CHEAL_eff_obs1_a2","Blåklint","Kornblomst","CENCY","Second grading","Efficacy",1,1,14,1,"identity","treatm","normal"]
[657,"CHESS_eff_obs1_a2","Svinmålla","Gaasefod hvidmelet","CHEAL","Second grading","Efficacy",1,1,14,1,"identity","treatm","normal"]
[658,"CIRAR_eff_obs1_a2","Målla","Gåsefod-Arter","CHESS","Second grading","Efficacy",1,1,14,1,"identity","treatm","normal"]
[659,"CONAR_eff_obs1_a2","Åkertistel","Agertidsel","CIRAR","Second grading","Efficacy",1,1,14,1,"identity","treatm","normal"]
[660,"CRDAR_eff_obs1_a2","Åkervinda","Ager-Snerle","CONAR","Second grading","Efficacy",1,1,14,1,"identity","treatm","normal"]
[661,"ECHCG_eff_obs1_a2","Sandtrav","Almindelig Sandkarse","CRDAR","Second grading","Efficacy",1,1,14,1,"identity","treatm","normal"]
[662,"EPHEX_eff_obs1_a2","Hönshirs","Almindelig Hanespore","ECHCG","Second grading","Efficacy",1,1,14,1,"identity","treatm","normal"]
[663,"EPHHE_eff_obs1_a2","Småtörel","Vortemaelk liden","EPHEX","Second grading","Efficacy",1,1,14,1,"identity","treatm","normal"]
[664,"EQUAR_eff_obs1_a2","Revormstörel","Skaerm-Vortemaelk","EPHHE","Second grading","Efficacy",1,1,14,1,"identity","treatm","normal"]
[665,"EROCI_eff_obs1_a2","Åkerfräken","Ager-Padderok","EQUAR","Second grading","Efficacy",1,1,14,1,"identity","treatm","normal"]
[666,"FUMOF_eff_obs1_a2","Skatnäva","Hejrenaeb","EROCI","Second grading","Efficacy",1,1,14,1,"identity","treatm","normal"]
[667,"GAEBI_eff_obs1_a2","Jordrök","Laege-Jordrøg","FUMOF","Second grading","Efficacy",1,1,14,1,"identity","treatm","normal"]
[668,"GAELA_eff_obs1_a2","Toppdån","Skov-Hanekro","GAEBI","Second grading","Efficacy",1,1,14,1,"identity","treatm","normal"]
[669,"GAESP_eff_obs1_a2","Mjukdån","Sand-Hanekro","GAELA","Second grading","Efficacy",1,1,14,1,"identity","treatm","normal"]
[670,"GAESS_eff_obs1_a2","Hampdån","Hamp-Hanekro","GAESP","Second grading","Efficacy",1,1,14,1,"identity","treatm","normal"]
[671,"GAETE_eff_obs1_a2","Dån","Hanekro","GAESS","Second grading","Efficacy",1,1,14,1,"identity","treatm","normal"]
[672,"GALAP_eff_obs1_a2","Pipdån","Almindelig Hanekro","GAETE","Second grading","Efficacy",1,1,14,1,"identity","treatm","normal"]
[673,"GERDI_eff_obs1_a2","Snärjmåra","Burresnerre","GALAP","Second grading","Efficacy",1,1,14,1,"identity","treatm","normal"]
[674,"GERMO_eff_obs1_a2","Fliknäva","Skov-Galtetand Stachys","GERDI","Second grading","Efficacy",1,1,14,1,"identity","treatm","normal"]
[675,"GERPU_eff_obs1_a2","Mjuknäva","Kær-Galtetand Stachys","GERMO","Second grading","Efficacy",1,1,14,1,"identity","treatm","normal"]
[676,"GERRO_eff_obs1_a2","Sparvnäva","Storkenaeb liden","GERPU","Second grading","Efficacy",1,1,14,1,"identity","treatm","normal"]
[677,"GERSS_eff_obs1_a2","Stinknäva","Stinkende Storkenæb","GERRO","Second grading","Efficacy",1,1,14,1,"identity","treatm","normal"]
[678,"GGGAN_eff_obs1_a2","Näva","Storkenæb","GERSS","Second grading","Efficacy",1,1,14,1,"identity","treatm","normal"]
[679,"HORVW_eff_obs1_a2","Gräs, Annuell","Græs","GGGAN","Second grading","Efficacy",1,1,14,1,"identity","treatm","normal"]
[680,"LAMAL_eff_obs1_a2","Spillkorn","Korn spild","HORVW","Second grading","Efficacy",1,1,14,1,"identity","treatm","normal"]
[681,"LAMAM_eff_obs1_a2","Vitplister","Døvnælde","LAMAL","Second grading","Efficacy",1,1,14,1,"identity","treatm","normal"]
[682,"LAMIN_eff_obs1_a2","Mjukplister","Liden Torskemund","LAMAM","Second grading","Efficacy",1,1,14,1,"identity","treatm","normal"]
[683,"LAMPU_eff_obs1_a2","Flikplister","Fliget Tvetand","LAMIN","Second grading","Efficacy",1,1,14,1,"identity","treatm","normal"]
[684,"LAMSS_eff_obs1_a2","Rödplister","Tvetand roed","LAMPU","Second grading","Efficacy",1,1,14,1,"identity","treatm","normal"]
[685,"LAPCO_eff_obs1_a2","Plister","Tvetand andre","LAMSS","Second grading","Efficacy",1,1,14,1,"identity","treatm","normal"]
[686,"LOLMU_eff_obs1_a2","Harkål","Haremad","LAPCO","Second grading","Efficacy",1,1,14,1,"identity","treatm","normal"]
[687,"LOLPE_eff_obs1_a2","Ital Rajgräs","Rajgræs, Italiensk","LOLMU","Second grading","Efficacy",1,1,14,1,"identity","treatm","normal"]
[688,"MATCH_eff_obs1_a2","Eng Rajgräs","Almindelig Rajgraes","LOLPE","Second grading","Efficacy",1,1,14,1,"identity","treatm","normal"]
[689,"MATIN_eff_obs1_a2","Kamomill","Kamille vellugtende","MATCH","Second grading","Efficacy",1,1,14,1,"identity","treatm","normal"]
[690,"MATSU_eff_obs1_a2","Baldersbrå","Kamille lugtloes","MATIN","Second grading","Efficacy",1,1,14,1,"identity","treatm","normal"]
[691,"MYOAR_eff_obs1_a2","Gatkamomill","Kamille skive","MATSU","Second grading","Efficacy",1,1,14,1,"identity","treatm","normal"]
[692,"MYOSS_eff_obs1_a2","Åkerförgätmigej","Forglemmigej mark","MYOAR","Second grading","Efficacy",1,1,14,1,"identity","treatm","normal"]
[693,"PAPRH_eff_obs1_a2","Förgätmigej","Forglemmigej","MYOSS","Second grading","Efficacy",1,1,14,1,"identity","treatm","normal"]
[694,"PAPSS_eff_obs1_a2","Kornvallmo","Valmue Korn","PAPRH","Second grading","Efficacy",1,1,14,1,"identity","treatm","normal"]
[695,"PLALA_eff_obs1_a2","Vallmo","Valmue","PAPSS","Second grading","Efficacy",1,1,14,1,"identity","treatm","normal"]
[696,"PLAMA_eff_obs1_a2","Svartkämpar","Lancet-Vejbred","PLALA","Second grading","Efficacy",1,1,14,1,"identity","treatm","normal"]
[697,"PLAME_eff_obs1_a2","Groblad","Glat Vejbred","PLAMA","Second grading","Efficacy",1,1,14,1,"identity","treatm","normal"]
[698,"POAAN_eff_obs1_a2","Rödkämpar","Dunet Vejbred","PLAME","Second grading","Efficacy",1,1,14,1,"identity","treatm","normal"]
[699,"POLAM_eff_obs1_a2","Vitgröe","Rapgraes enaarig","POAAN","Second grading","Efficacy",1,1,14,1,"identity","treatm","normal"]
[700,"POLAV_eff_obs1_a2","Vattenpilört","Vand-Pileurt","POLAM","Second grading","Efficacy",1,1,14,1,"identity","treatm","normal"]
[701,"POLCO_eff_obs1_a2","Trampört","Pileurt vej","POLAV","Second grading","Efficacy",1,1,14,1,"identity","treatm","normal"]
[702,"POLCO_eff_obs1_a2","Åkerbinda","Snerle-Pileurt","POLCO","Second grading","Efficacy",1,1,14,1,"identity","treatm","normal"]
[703,"POLHY_eff_obs1_a2","åkerbinda","Pileurt snerle","POLCO","Second grading","Efficacy",1,1,14,1,"identity","treatm","normal"]
[704,"POLLA_eff_obs1_a2","Bitterpilört","Bidende Pileurt","POLHY","Second grading","Efficacy",1,1,14,1,"identity","treatm","normal"]
[705,"POLPE_eff_obs1_a2","Vanlig Pilört","Pileurt bleg","POLLA","Second grading","Efficacy",1,1,14,1,"identity","treatm","normal"]
[706,"RAPRA_eff_obs1_a2","Åkerpilört","Pileurt fersken","POLPE","Second grading","Efficacy",1,1,14,1,"identity","treatm","normal"]
[707,"SENVU_eff_obs1_a2","Åkerrättika","Kiddike","RAPRA","Second grading","Efficacy",1,1,14,1,"identity","treatm","normal"]
[708,"SILNO_eff_obs1_a2","Korsört","Brandbaeger almindelig","SENVU","Second grading","Efficacy",1,1,14,1,"identity","treatm","normal"]
[709,"SINAR_eff_obs1_a2","Nattglim","Limurt nat","SILNO","Second grading","Efficacy",1,1,14,1,"identity","treatm","normal"]
[710,"SOLNI_eff_obs1_a2","Åkersenap","Agersennep","SINAR","Second grading","Efficacy",1,1,14,1,"identity","treatm","normal"]
[711,"SOLTU_eff_obs1_a2","Nattskatta","Natskygge sort","SOLNI","Second grading","Efficacy",1,1,14,1,"identity","treatm","normal"]
[712,"SONAR_eff_obs1_a2","Potatis","Kartoffel","SOLTU","Second grading","Efficacy",1,1,14,1,"identity","treatm","normal"]
[713,"SSYOF_eff_obs1_a2","Åkermolke","Svinemaelk ager","SONAR","Second grading","Efficacy",1,1,14,1,"identity","treatm","normal"]
[714,"STAPA_eff_obs1_a2","Vägsenap","Rød Tvetand","SSYOF","Second grading","Efficacy",1,1,14,1,"identity","treatm","normal"]
[715,"STEME_eff_obs1_a2","Knölsyska","Kær-Galtetand","STAPA","Second grading","Efficacy",1,1,14,1,"identity","treatm","normal"]
[716,"TAROF_eff_obs1_a2","Våtarv","Fuglegraes","STEME","Second grading","Efficacy",1,1,14,1,"identity","treatm","normal"]
[717,"THLAR_eff_obs1_a2","Maskros","Almindelig Mælkebøtte","TAROF","Second grading","Efficacy",1,1,14,1,"identity","treatm","normal"]
[718,"TRZAW_eff_obs1_a2","Penningört","Almindelig Pengeurt","THLAR","Second grading","Efficacy",1,1,14,1,"identity","treatm","normal"]
[719,"TTTTT_eff_obs1_a2","Spillvete","Hvede (spildkorn)","TRZAW","Second grading","Efficacy",1,1,14,1,"identity","treatm","normal"]
[720,"TUSFA_eff_obs1_a2","Ogräs Ospec","Ukrudt uspecificeret","TTTTT","Second grading","Efficacy",1,1,14,1,"identity","treatm","normal"]
[721,"URTUR_eff_obs1_a2","Hästhov","Følfod","TUSFA","Second grading","Efficacy",1,1,14,1,"identity","treatm","normal"]
[722,"VERAG_eff_obs1_a2","Etternässla","Liden Naelde","URTUR","Second grading","Efficacy",1,1,14,1,"identity","treatm","normal"]
[723,"VERAR_eff_obs1_a2","Åkerveronika","Flerfarvet Ærenpris","VERAG","Second grading","Efficacy",1,1,14,1,"identity","treatm","normal"]
[724,"VERHE_eff_obs1_a2","Fältveronika","Aerenpris mark","VERAR","Second grading","Efficacy",1,1,14,1,"identity","treatm","normal"]
[725,"VERPE_eff_obs1_a2","Murgrönsveronika","Aerenspris vedbend","VERHE","Second grading","Efficacy",1,1,14,1,"identity","treatm","normal"]
[726,"VERSS_eff_obs1_a2","Trädgårdsveronika","Aerenpris storkronet","VERPE","Second grading","Efficacy",1,1,14,1,"identity","treatm","normal"]
[727,"VIOAR_eff_obs1_a2","Veronika","Stedmoderblomst","VERSS","Second grading","Efficacy",1,1,14,1,"identity","treatm","normal"]
[728,"VIOSS_eff_obs1_a2","Åkerviol","Ager-Stedmoderblomst","VIOAR","Second grading","Efficacy",1,1,14,1,"identity","treatm","normal"]
[729,"VIOSS_proc_obs1_a2","Viol","Viol","VIOSS","Second grading","Efficacy",1,1,14,1,"identity","treatm","normal"]

{"sheet":"Sprutplan","index":5,"n_rows":33,"n_cols":9,"rows_kept":33,"cut":false,"hidden":false,"merged":[]}
["427 Behandling mot bladsvampar i sockerbetor"]
["temp3"]
["Syfte/aim: "]
["Serie 427"]
["Treatment against leaf diseases in sugar beet"]
[]
[null,null,null,"Chemical products"]
["Led","Tid T","dag","Comet Pro","Armure","Amistar Gold","Thiopron"]
[null,null,null,"l/ha","l/ha","l/ha","l/ha"]
[1,"Untreated"]
[]
[2,1,"1. day Treshold",0.3,null,null,null," "," "]
[null,2,"21. day",0.3,null,null,null," "," "]
[null,3,"42. day",null,null,null,null," "," "]
[null,"Total",null,{"$f":"SUM(D12:D14)","v":0.6},{"$f":"SUM(E12:E14)","v":0},{"$f":"SUM(F12:F14)","v":0},{"$f":"SUM(G12:G14)","v":0}," "," "]
[]
[3,1,"1. day Treshold",0.6,null,null,null," "," "]
[null,2,"21. day",0.6,null,null,null," "," "]
[null,3,"42. day",null,null,null,null," "," "]
[null,"Total",null,{"$f":"SUM(D17:D19)","v":1.2},{"$f":"SUM(E17:E19)","v":0},{"$f":"SUM(F17:F19)","v":0},{"$f":"SUM(G17:G19)","v":0}," "," "]
[]
[4,1,"1. day Treshold",null,null,0.5,null," "," "]
[null,2,"21. day",0.3,null,null,null," "," "]
[null,3,"42. day",null,null,null,null," "," "]
[null,"Total",null,{"$f":"SUM(D22:D24)","v":0.3},{"$f":"SUM(E22:E24)","v":0},{"$f":"SUM(F22:F24)","v":0.5},{"$f":"SUM(G22:G24)","v":0}," "," "]
[]
[{"$f":"A22+1","v":5},1,"1. day Treshold",null,null,1,null," "," "]
[null,2,"21. day",0.6,null,null,null," "," "]
[null,3,"42. day",null,null,null,null," "," "]
[null,"Total",null,{"$f":"SUM(D27:D29)","v":0.6},{"$f":"SUM(E27:E29)","v":0},{"$f":"SUM(F27:F29)","v":1},{"$f":"SUM(G27:G29)","v":0}," "," "]
[]
[null,"TI","Vid begynnande angrepp, normalt 1-10/8"]
[null,"TII","2-3 veckor efter efter TI"]

{"sheet":"Serial average 2019","index":6,"n_rows":16,"n_cols":23,"rows_kept":16,"cut":false,"hidden":false,"merged":[]}
[1,2,3,4,15,16,17,18,20,21,31,35,36,55,56,57,58,59,70,71,72,73,74]
[null,null,null,null,"All sites","All sites","All sites","All sites","All sites","All sites","All sites","All sites","All sites","All sites","All sites","All sites","All sites","All sites","All sites","All sites","All sites","All sites","All sites"]
["Series 427 (trial no All sites)",null,null,null,"Rot","Socker","Socker","Socker","Ekonomi ","Ekonomi ","Renhet","K+Na","Blåtal","Mjöldagg","Rost","Ramularia","Cercospora","Återväxt","Mjöldagg","Rost","Ramularia","Cercospora","Återväxt"]
[null,null,null,null,"Root ","Sugar","Sugar","Sugar","Economy","Economy","Cleaness","K+Na","Amino-N","Mildew","Rust","Ramularia","Cercospora","Regrowth","Mildew","Rust","Ramularia","Cercospora","Regrowth"]
["Expl.",null,null,null,null,null,null,null,"Total income","Diff to avg.",null,"pr 100g beet","pr 100g beet","Early","Early","Early","Early","Early","Very late","Very late","Very late","Very late","Late"]
["no trials"]
["Unit",null,null,null,"t/ha","%","t/ha","relative","SEK/ha","SEK/ha","%","mmol","mg ","Sc. 1-100","Sc. 1-100","Sc. 1-100","Sc. 1-100","Sc. 1-100","Sc. 1-100","Sc. 1-100","Sc. 1-100","Sc. 1-100","Sc. 1-100"]
[null,null,null,null,96.355999999999995,16.27,15.682,100,26582.829141959995,0,84.268000000000001,3.476,14.3,0.6,37,0.45,3.85,22.917000000000002,1.45,74,4.3,9.65,23.75]
[1,"R","Obehandlat",null,96.355999999999995,16.27,15.682,100,26582.829141959995,0,84.268000000000001,3.476,14.3,0.6,37,0.45,3.85,22.917000000000002,1.45,74,4.3,9.65,23.75]
[2,null,"Två halvdoser CP",null,104.96299999999999,16.818000000000001,17.637,112.46652212727967,30671.751918921993,4088.9227769619974,84.876999999999995,3.5609999999999999,13.2,0,22.5,0.15,1.9,3.3330000000000002,0.35,62.5,1.85,11.5,2]
[3,null,"Två heldoser CP",null,105.816,17.074000000000002,18.03,114.97258002805766,31790.315905872005,5207.4867639120093,85.453999999999994,3.47,11.7,0,11.85,0,3.25,0,0.05,50,0,16.7,0]
[4,null,"Två halvdoser (Amistar Gold/Comet Pro)",null,104.015,16.888999999999999,17.538,111.83522509883943,30582.208107304996,3999.3789653450003,84.799000000000007,3.4649999999999999,12.7,0,22,0,1.2,3.3330000000000002,0,59,0.05,9.75,2]
[5,null,"Två heldoser (Amistar Gold/Comet Pro)",null,106.34099999999999,17.106999999999999,18.175000000000001,115.89720698890449,31872.139671920995,5289.3105299609997,84.641999999999996,3.4489999999999998,11.335000000000001,0,11.75,0.1,0.55000000000000004,0,0.1,48.5,0.2,8.0500000000000007,0]
["LSD",null,null,null,2.6720000000000002,0.18,0.46700000000000003,null,null,null,"ns","ns",1.18,0.28299999999999997,2.7149999999999999,"ns","ns",2.5779999999999998,0.498,2.4729999999999999,"ns","ns",1.7889999999999999]
["CV",null,null,null,4.556,1.891,4.7350000000000003,null,null,null,2.2120000000000002,6.0510000000000002,16.440999999999999,419.31400000000002,22.928000000000001,377.81599999999997,256.02800000000002,59.207999999999998,226.50299999999999,7.4660000000000002,452.55500000000001,116.896,57.22]
["P_value",null,null,null,"<0,0001","<0,0001","<0,0001",null,null,null,0.38689177684493758,0.48764993086571828,"<0.001","<0.001","<0,0001",5.1795959248858381E-2,0.29226228952658295,"<0,0001","<0,0001","<0,0001",9.3821256377695672E-2,0.26959709852827762,"<0,0001"]

{"sheet":"Wägg 154","index":7,"n_rows":16,"n_cols":21,"rows_kept":16,"cut":false,"hidden":false,"merged":[]}
[1,2,3,4,15,16,17,18,31,35,36,55,56,57,58,59,70,71,72,73,74]
[null,null,null,null,154,154,154,154,154,154,154,154,154,154,154,154,154,154,154,154,154]
["Series 427 (trial no 154)",null,null,null,"Rot","Socker","Socker","Socker","Renhet","K+Na","Blåtal","Mjöldagg","Rost","Ramularia","Cercospora","Återväxt","Mjöldagg","Rost","Ramularia","Cercospora","Återväxt"]
["Wäggarp",null,null,null,"Root ","Sugar","Sugar","Sugar","Cleaness","K+Na","Amino-N","Mildew","Rust","Ramularia","Cercospora","Regrowth","Mildew","Rust","Ramularia","Cercospora","Regrowth"]
["Expl.",null,null,null,null,null,null,null,null,"pr 100g beet","pr 100g beet","Early","Early","Early","Early","Early","Very late","Very late","Very late","Very late","Late"]
["no trials"]
["Unit",null,null,null,"t/ha","%","t/ha","relative","%","mmol","mg ","Sc. 1-100","Sc. 1-100","Sc. 1-100","Sc. 1-100","Sc. 1-100","Sc. 1-100","Sc. 1-100","Sc. 1-100","Sc. 1-100","Sc. 1-100"]
[null,null,null,null,97.04,16.305,15.827999999999999,100,79.069999999999993,3.7170000000000001,17.75,0,30,0,2,15,0.75,70,0,2,15]
[1,"R","Obehandlat",null,97.04,16.305,15.827999999999999,100,79.069999999999993,3.7170000000000001,17.75,0,30,0,2,15,0.75,70,0,2,15]
[2,null,"Två halvdoser CP",null,100.678,16.477,16.585000000000001,104.78266363406622,80.557000000000002,3.895,16.25,0,20,0,1.75,0,0,57.5,0,9.5,0]
[3,null,"Två heldoser CP",null,102.46599999999999,16.725000000000001,17.135999999999999,108.26383623957543,80.679000000000002,3.93,14.25,0,10,0,0.75,0,0,37.5,0,15.75,0]
[4,null,"Två halvdoser (Amistar Gold/Comet Pro)",null,102.529,16.597999999999999,17.012,107.48041445539552,79.507000000000005,3.6949999999999998,14.5,0,20,0,1.5,0,0,47.5,0,1.5,0]
[5,null,"Två heldoser (Amistar Gold/Comet Pro)",null,106.512,16.855,17.952000000000002,113.41925701288858,80.698999999999998,3.63,12,0,8.25,0,0.75,0,0,40,0,2,0]
["LSD",null,null,null,4.7709999999999999,"ns",0.80900000000000005,null,"ns","ns","ns",null,0.77500000000000002,null,"ns",4.3579999999999997,"ns",5.1870000000000003,null,"ns",4.3579999999999997]
["CV",null,null,null,3.399,1.5680000000000001,3.4740000000000002,null,3.952,6.1849999999999996,18.701000000000001,null,3.1880000000000002,null,106.917,105.40900000000001,447.214,7.4530000000000003,null,132.84700000000001,105.40900000000001]
["P_value",null,null,null,"<0.05",7.1270497432681434E-2,"<0.05",null,0.91556769786792924,0.32528747529660751,9.4032758935984395E-2,null,"<0,0001",null,0.6446989446080662,"<0,0001",0.44280859393278071,"<0,0001",null,0.10895303863268468,"<0,0001"]

{"sheet":"Korn 153","index":8,"n_rows":16,"n_cols":21,"rows_kept":16,"cut":false,"hidden":false,"merged":[]}
[1,2,3,4,15,16,17,18,31,35,36,55,56,57,58,59,70,71,72,73,74]
[null,null,null,null,153,153,153,153,153,153,153,153,153,153,153,153,153,153,153,153,153]
["Series 427 (trial no 153)",null,null,null,"Rot","Socker","Socker","Socker","Renhet","K+Na","Blåtal","Mjöldagg","Rost","Ramularia","Cercospora","Återväxt","Mjöldagg","Rost","Ramularia","Cercospora","Återväxt"]
["Kornheddinge 2",null,null,null,"Root ","Sugar","Sugar","Sugar","Cleaness","K+Na","Amino-N","Mildew","Rust","Ramularia","Cercospora","Regrowth","Mildew","Rust","Ramularia","Cercospora","Regrowth"]
["Expl.",null,null,null,null,null,null,null,null,"pr 100g beet","pr 100g beet","Early","Early","Early","Early","Early","Very late","Very late","Very late","Very late","Late"]
["no trials"]
["Unit",null,null,null,"t/ha","%","t/ha","relative","%","mmol","mg ","Sc. 1-100","Sc. 1-100","Sc. 1-100","Sc. 1-100","Sc. 1-100","Sc. 1-100","Sc. 1-100","Sc. 1-100","Sc. 1-100","Sc. 1-100"]
[null,null,null,null,89.293000000000006,16.855,15.055,100,80.492000000000004,3.2450000000000001,12.25,0,37.5,0,0,27.5,0,80,0,0,27.5]
[1,"R","Obehandlat",null,89.293000000000006,16.855,15.055,100,80.492000000000004,3.2450000000000001,12.25,0,37.5,0,0,27.5,0,80,0,0,27.5]
[2,null,"Två halvdoser CP",null,105.477,17.600000000000001,18.57,123.34772500830289,83.466999999999999,3.4550000000000001,13.5,0,20,0,0,3.75,0,65,0,0.75,3.75]
[3,null,"Två heldoser CP",null,101.494,17.954999999999998,18.227,121.0694121554301,82.58,3.258,11,0,8.25,0,0,0,0,50,0,2.75,0]
[4,null,"Två halvdoser (Amistar Gold/Comet Pro)",null,98.953000000000003,17.792999999999999,17.611999999999998,116.98439056791763,81.954999999999998,3.298,12.25,0,10,0,0,0,0,60,0,2.75,0]
[5,null,"Två heldoser (Amistar Gold/Comet Pro)",null,98.974999999999994,18.178000000000001,18,119.56160743938891,80.180999999999997,3.3460000000000001,10.667,0,9.5,0,0,0,0,50,0,15,0]
["LSD",null,null,null,6.5090000000000003,0.28499999999999998,1.2390000000000001,null,"ns","ns","ns",null,3.3519999999999999,null,null,2.1789999999999998,null,3.5579999999999998,null,8.77,2.1789999999999998]
["CV",null,null,null,4.5609999999999999,1.1160000000000001,4.915,null,2.383,5.0890000000000004,15.295999999999999,null,14.266,null,null,25.297999999999998,null,4.2329999999999997,null,149.756,25.297999999999998]
["P_value",null,null,null,"<0.05","<0,0001","<0.001",null,0.19208946840504415,0.44264005402994044,0.28536077191783749,null,"<0,0001",null,null,"<0,0001",null,"<0,0001",null,"<0.05","<0,0001"]

{"sheet":"Vrag 152","index":9,"n_rows":16,"n_cols":20,"rows_kept":16,"cut":false,"hidden":false,"merged":[]}
[1,2,3,4,15,16,17,18,31,35,36,55,56,57,58,70,71,72,73,74]
[null,null,null,null,152,152,152,152,152,152,152,152,152,152,152,152,152,152,152,152]
["Series 427 (trial no 152)",null,null,null,"Rot","Socker","Socker","Socker","Renhet","K+Na","Blåtal","Mjöldagg","Rost","Ramularia","Cercospora","Mjöldagg","Rost","Ramularia","Cercospora","Återväxt"]
["Vragerup",null,null,null,"Root ","Sugar","Sugar","Sugar","Cleaness","K+Na","Amino-N","Mildew","Rust","Ramularia","Cercospora","Mildew","Rust","Ramularia","Cercospora","Regrowth"]
["Expl.",null,null,null,null,null,null,null,null,"pr 100g beet","pr 100g beet","Early","Early","Early","Early","Very late","Very late","Very late","Very late","Late"]
["no trials"]
["Unit",null,null,null,"t/ha","%","t/ha","relative","%","mmol","mg ","Sc. 1-100","Sc. 1-100","Sc. 1-100","Sc. 1-100","Sc. 1-100","Sc. 1-100","Sc. 1-100","Sc. 1-100","Sc. 1-100"]
[null,null,null,null,101.745,16.161999999999999,16.443000000000001,100,88.248000000000005,3.8780000000000001,14.75,3,37.5,0,0,3.5,70,0,0,30]
[1,"R","Obehandlat",null,101.745,16.161999999999999,16.443000000000001,100,88.248000000000005,3.8780000000000001,14.75,3,37.5,0,0,3.5,70,0,0,30]
[2,null,"Två halvdoser CP",null,111.875,16.602,18.574000000000002,112.95992215532445,87.316000000000003,3.7519999999999998,12.75,0,20,0,0.75,0,60,0,17,0]
[3,null,"Två heldoser CP",null,110.621,16.998000000000001,18.800999999999998,114.34044882320742,88.040999999999997,3.8370000000000002,11.75,0,17.5,0,0,0,60,0,2.5,0]
[4,null,"Två halvdoser (Amistar Gold/Comet Pro)",null,108.425,16.77,18.172000000000001,110.51511281396338,87.775000000000006,3.7930000000000001,13,0,20,0,1,0,57.5,0,9.5,0]
[5,null,"Två heldoser (Amistar Gold/Comet Pro)",null,109.05200000000001,17.102,18.655000000000001,113.45253299276288,87.655000000000001,3.7320000000000002,10.75,0,10,0,0,0,50,0,7.5,0]
["LSD",null,null,null,"ns",0.311,1.127,null,"ns","ns",2.222,null,3.774,null,"ns",0.61599999999999999,3.081,null,"ns"]
["CV",null,null,null,4.6719999999999997,1.35,4.5119999999999996,null,1.204,6.5119999999999996,12.797000000000001,223.60679774997897,13.041,null,263.416,63.887999999999998,3.758,null,156.22800000000001,223.60679774997897]
["P_value",null,null,null,9.5217275983106031E-2,"<0.001","<0.05",null,0.76390616927930355,0.91532477552927749,"<0.05",null,"<0,0001",null,0.39018751535202445,"<0,0001","<0,0001",null,0.29820769369935141]

{"sheet":"Vall 151","index":10,"n_rows":16,"n_cols":20,"rows_kept":16,"cut":false,"hidden":false,"merged":[]}
[1,2,3,4,15,16,17,18,31,35,36,55,56,57,58,70,71,72,73,74]
[null,null,null,null,151,151,151,151,151,151,151,151,151,151,151,151,151,151,151,151]
["Series 427 (trial no 151)",null,null,null,"Rot","Socker","Socker","Socker","Renhet","K+Na","Blåtal","Mjöldagg","Rost","Ramularia","Cercospora","Mjöldagg","Rost","Ramularia","Cercospora","Återväxt"]
["Vallby",null,null,null,"Root ","Sugar","Sugar","Sugar","Cleaness","K+Na","Amino-N","Mildew","Rust","Ramularia","Cercospora","Mildew","Rust","Ramularia","Cercospora","Regrowth"]
["Expl.",null,null,null,null,null,null,null,null,"pr 100g beet","pr 100g beet","Early","Early","Early","Early","Very late","Very late","Very late","Very late","Late"]
["no trials"]
["Unit",null,null,null,"t/ha","%","t/ha","relative","%","mmol","mg ","Sc. 1-100","Sc. 1-100","Sc. 1-100","Sc. 1-100","Sc. 1-100","Sc. 1-100","Sc. 1-100","Sc. 1-100","Sc. 1-100"]
[null,null,null,null,109.209,16.254999999999999,17.748999999999999,100,82.891000000000005,3.125,14.75,0,40,2.25,7.5,3,70,21.5,20.5,20]
[1,"R","Obehandlat",null,109.209,16.254999999999999,17.748999999999999,100,82.891000000000005,3.125,14.75,0,40,2.25,7.5,3,70,21.5,20.5,20]
[2,null,"Två halvdoser CP",null,113.506,16.28,18.48,104.11854188968394,81.948999999999998,3.242,13.25,0,30,0.75,5,1.75,60,9.25,20.5,0]
[3,null,"Två heldoser CP",null,120.40600000000001,16.34,19.661999999999999,110.77807200405655,85.036000000000001,3.0379999999999998,12,0,8.5,0,12.5,0.25,52.5,0,37.5,0]
[4,null,"Två halvdoser (Amistar Gold/Comet Pro)",null,118.556,16.332999999999998,19.361000000000001,109.08220181418673,83.64,3.1019999999999999,12.25,0,30,0,0,0,60,0.25,9.25,0]
[5,null,"Två heldoser (Amistar Gold/Comet Pro)",null,118.83799999999999,16.475000000000001,19.587,110.35551298664714,83.055000000000007,3.125,11.75,0,8.5,0.5,0.5,0.5,50,1,12.75,0]
["LSD",null,null,null,7.2640000000000002,"ns",1.1639999999999999,null,"ns","ns",1.478,null,1.51,1.355,"ns",1.7609999999999999,3.081,"ns","ns"]
["CV",null,null,null,4.54,1.214,4.4550000000000001,null,2.2210000000000001,3.5750000000000002,8.3780000000000001,null,4.681,140.45599999999999,205.71100000000001,116.184,3.8220000000000001,178.267,84.917000000000002,223.60679774997897]
["P_value",null,null,null,"<0.05",0.5805725829516647,"<0.05",null,0.25977017276410752,0.20224291775679704,"<0.05",null,"<0,0001","<0.05",0.44843040576117499,"<0.05","<0,0001",7.501618128607257E-2,0.23034259085614739]

{"sheet":"Sass 150","index":11,"n_rows":16,"n_cols":21,"rows_kept":16,"cut":false,"hidden":false,"merged":[]}
[1,2,3,4,15,16,17,18,31,35,36,55,56,57,58,59,70,71,72,73,74]
[null,null,null,null,150,150,150,150,150,150,150,150,150,150,150,150,150,150,150,150,150]
["Series 427 (trial no 150)",null,null,null,"Rot","Socker","Socker","Socker","Renhet","K+Na","Blåtal","Mjöldagg","Rost","Ramularia","Cercospora","Återväxt","Mjöldagg","Rost","Ramularia","Cercospora","Återväxt"]
["Sassarp",null,null,null,"Root ","Sugar","Sugar","Sugar","Cleaness","K+Na","Amino-N","Mildew","Rust","Ramularia","Cercospora","Regrowth","Mildew","Rust","Ramularia","Cercospora","Regrowth"]
["Expl.",null,null,null,null,null,null,null,null,"pr 100g beet","pr 100g beet","Early","Early","Early","Early","Early","Very late","Very late","Very late","Very late","Late"]
["no trials"]
["Unit",null,null,null,"t/ha","%","t/ha","relative","%","mmol","mg ","Sc. 1-100","Sc. 1-100","Sc. 1-100","Sc. 1-100","Sc. 1-100","Sc. 1-100","Sc. 1-100","Sc. 1-100","Sc. 1-100","Sc. 1-100"]
[null,null,null,null,84.494,15.775,13.334,100,90.64,3.415,12,0,40,0,9.75,26.25,0,80,0,25.75,26.25]
[1,"R","Obehandlat",null,84.494,15.775,13.334,100,90.64,3.415,12,0,40,0,9.75,26.25,0,80,0,25.75,26.25]
[2,null,"Två halvdoser CP",null,93.275999999999996,17.132999999999999,15.976000000000001,119.81400929953503,91.096999999999994,3.46,10.25,0,22.5,0,2,6.25,0,70,0,9.75,6.25]
[3,null,"Två heldoser CP",null,94.091999999999999,17.352,16.321999999999999,122.4088795560222,90.933999999999997,3.2879999999999998,9.5,0,15,0,3,0,0,50,0,25,0]
[4,null,"Två halvdoser (Amistar Gold/Comet Pro)",null,91.614000000000004,16.954999999999998,15.532,116.48417579121045,91.117999999999995,3.4380000000000002,11.5,0,30,0,3.5,10,0,70,0,25.75,10]
[5,null,"Två heldoser (Amistar Gold/Comet Pro)",null,98.295000000000002,16.995000000000001,16.713000000000001,125.34123293835309,91.14,3.4279999999999999,11.5,0,22.5,0,1.5,0,0,52.5,0,3,0]
["LSD",null,null,null,4.9130000000000003,0.52400000000000002,0.95,null,"ns","ns","ns",null,7.548,null,"ns",2.1789999999999998,null,3.081,null,14.601000000000001,2.1789999999999998]
["CV",null,null,null,3.8610000000000002,2.2589999999999999,4.4260000000000002,null,0.745,7.681,23.073,null,21.065999999999999,null,151.511,18.602,null,3.4670000000000001,null,59.360999999999997,18.602]
["P_value",null,null,null,"<0.05","<0.001","<0.001",null,0.81671752244420603,0.89151216599475436,0.62048815751956587,null,"<0.001",null,0.34423764738049367,"<0,0001",null,"<0,0001",null,"<0.05","<0,0001"]

{"sheet":" Medeltal 2011-2018","index":12,"n_rows":15,"n_cols":23,"rows_kept":15,"cut":false,"hidden":false,"merged":[]}
[1,2,3,4,9,15,16,17,18,20,21,74,75,31,35,36,55,56,57,58,75,76,78]
[null,null,null,null,"2011-2018","2011-2018","2011-2018","2011-2018","2011-2018","2011-2018","2011-2018",427,427,"2011-2018","2011-2018","2011-2018","2011-2018","2011-2018","2011-2018","2011-2018","2011-2018","2011-2018","2011-2018"]
["Series 427 (Average 2011-2018)",null,null,null,"Plant nr","Rot","Socker","Socker","Socker","Ekonomi ","Ekonomi ","Kostnad","Lönsamhet","Renhet","K+Na","Blåtal","Mjöldagg","Rost","Ramularia","Cercospora","Mjöldagg","Rost","Cercospora"]
[null,null,null,null,"Plant no","Root ","Sugar","Sugar","Sugar","Economy","Economy","Cost","Profit","Cleaness","K+Na","Amino-N","Mildew","Rust","Ramularia","Cercospora","Mildew","Rust","Cercospora"]
["Expl.",null,null,null,1,null,null,null,null,"Total income","Diff to avg.","For treatment",null,null,"pr 100g beet","pr 100g beet","Early","Early","Early","Early","Very late","Very late","Very late"]
["no trials",null,null,null,34,34,34,34,34,34,34,34,34,34,34,34,34,34,34,34,34,34,34]
["Unit",null,null,null,"1000/ha","t/ha","%","t/ha","relative","SEK/ha","SEK/ha","kr/ha","kr/ha","%","mmol","mg ","Sc. 1-100","Sc. 1-100","Sc. 1-100","Sc. 1-100","Sc. 1-100","Sc. 1-100","Sc. 1-100"]
[null,null,null,null,100.86,98.634,17.602,14.974,100,33545.759347404004,0,0,0,87.241,3.5750000000000002,15.074999999999999,11.08,8.5839999999999996,2.5619999999999998,0.17899999999999999,30.477,52.366,13.62]
[1,"R","Obehandlat",null,100.86,98.634,17.602,14.974,100,33545.759347404004,0,0,0,87.241,3.5750000000000002,15.074999999999999,11.08,8.5839999999999996,2.5619999999999998,0.17899999999999999,30.477,52.366,13.62]
[2,null,"Två halvdoser",null,100.703,104.626,17.888000000000002,16.140999999999998,107.79350874849737,36442.288756064008,2896.5294086600043,605,{"$f":"K10-L10","v":2291.5294086600043},87.292000000000002,3.4729999999999999,11.669,1.143,2.8170000000000002,0.45500000000000002,0.217,11.148,30.390999999999998,5.2309999999999999]
[3,null,"En heldos",null,100.273,102.69,17.827000000000002,15.785,105.41605449445706,35414.092477890008,1868.3331304860039,415,{"$f":"K11-L11","v":1453.3331304860039},86.941999999999993,3.4889999999999999,13.207000000000001,1.5580000000000001,3.2679999999999998,0.55500000000000005,0.152,21.454999999999998,38.374000000000002,5.87]
[4,null,"Två heldoser",null,100.261,105.545,17.919,16.3,108.85534927207159,36688.176276565006,3142.4169291610015,830,{"$f":"K12-L12","v":2312.4169291610015},86.978999999999999,3.5259999999999998,12.15,0.66100000000000003,2.0179999999999998,0.437,0.14299999999999999,5.97,24.998999999999999,2.6720000000000002]
["LSD",null,null,null,"ns",1.1759999999999999,5.6000000000000001E-2,0.187,null,null,null,null,null,"ns",6.0999999999999999E-2,0.70099999999999996,1.645,0.87,0.58499999999999996,"ns",2.3460000000000001,1.6779999999999999,1.7030000000000001]
["CV",null,null,null,4.4509999999999996,5.3250000000000002,1.47,5.4989999999999997,null,null,null,null,null,2.3170000000000002,8.0630000000000006,25.289000000000001,205.12,88.322000000000003,264.74700000000001,338.08300000000003,67.334000000000003,21.132999999999999,112.43600000000001]
["P_value",null,null,null,0.61026226468522859,"<0,0001","<0,0001","<0,0001",null,null,null,null,null,0.41061829823675988,"<0.05","<0,0001","<0,0001","<0,0001","<0,0001",0.78185999763048963,"<0,0001","<0,0001","<0,0001"]

{"sheet":"Treatments","index":13,"n_rows":49,"n_cols":17,"rows_kept":49,"cut":false,"hidden":false,"merged":[]}
[null,"427 Strategies for leaf diseases in sugar beet",null,null,null,null,null,"427-2019",null,"427 Strategies for leaf diseases in sugar beet",null,null,null,null,null,"427-2019"]
[null,"Plant protection (weeds)",null,null,null,null,null,null,null,"Plant protection (weeds)"]
[null,"Site","Date",null,"Product and dose",null,null,null,null,"Site","Date",null,"Product and dose"]
[null,{"$f":"'[11]Input data 2'!$B$18","v":"Trial site 150"},"2019-04-30","1,0 G + 0,6 BP + 0,08 E + 8g S + 0,5 Renol",null,null,null,null,null,{"$f":"'[11]Input data 2'!$B$21","v":"Trial site 153"},"2019-04-28","1,5 G + 0,6 KP + 0,1 T + 0,5 O"]
[null,null,"2019-05-11","1,25 G + 0,6 BP + 0,14 E + 15g S + 0,5 Renol",null,null,null,null,null,null,"2019-05-10","1,0 G + 0,6 KP + 0,1 T + 0,5 O"]
[null,null,"2019-05-22","0,75 G + 0,6 BP + 0,15 E + 15g S + 0,05 Centium + 0,5 Renol",null,null,null,null,null,null,"2019-05-21","0,5 G + 0,6 KP + 0,1 T + 0,5 O"]
[]
[null,{"$f":"'[11]Input data 2'!$B$19","v":"Trial site 151"},"2019-04-30","1,0 G + 0,6 BP + 0,10 T + 7,5g S + 0,5 Super olja",null,null,null,null,null,{"$f":"'[11]Input data 2'!$B$22","v":"Trial site 154"},"2019-03-30","3 L Jablo"]
[null,null,"2019-05-13","1,0 G + 0,6 BP + 0,10 T + 15g S + 0,5 Super olja",null,null,null,null,null,null,"2019-04-29","Goltix 1 L+Betanal Power 0,6 L+Safari 5 gr+Renol 0,5 L"]
[null,null,"2019-05-24","1,0 G + 0,6 BP + 0,14 T + 20g S + 0,5 Super olja",null,null,null,null,null,null,"2019-05-20","Goltix 1 L + Betanal Powe 0,6 L + Ethosat 0,05 L + Safari 12 gr+ Renol 0,5 L ",null,null,null,null,"30 mars 3 L Jablo"]
[null,null,"2019-06-17","Biowet 02 + 30g S",null,null,null,null,null,null,"2019-06-03","Goltix 1 L +Betanal Power 0,6 L + Safari 20 gr + Renol 0,5 L"]
[]
[null,{"$f":"'[11]Input data 2'!$B$20","v":"Trial site 152"},"2019-04-25","1,0 Target+1,0 Betasana Duo+0,05 Ethosat+0,5 Rapsodi",null,null,null,null,null,{"$f":"'[11]Input data 2'!$B$24","v":0},"2019-XX-XX"]
[null,null,"2019-05-04","1,0 Target+1,0 Betasana Duo+0,1 Ethosat+10g Safari+0,5 Rapsodi",null,null,null,null,null,null,"2019-XX-XX"]
[null,null,"2019-05-18","1,0 Target+1,0 Betasana Duo+0,1 Ethosat+10g Safari+0,5 Rapsodi",null,null,null,null,null,null,"2019-XX-XX"]
[]
[]
[null,"Fertilization ",null,null,null,null,null,null,null,"Fertilization "]
[null,"Site","Date",null,"Product and dose",null,null,null,null,"Site","Date",null,"Product and dose"]
[null,{"$f":"'[11]Input data 2'!$B$18","v":"Trial site 150"},"2019-03-28","fastgödsel nöt 25 ton/ha  ( 25 N, 40 P, 125 K)",null,null,null,null,null,{"$f":"'[11]Input data 2'!$B$21","v":"Trial site 153"},"2019-03-31","NPK 17-5-10  650 kg/ha"]
[null,null,"2019-04-02","Probeta NPK 450 kg/ha",null,null,null,null,null,null,"2019-05-10","Besal 170 kg/ha"]
[]
[null,{"$f":"'[11]Input data 2'!$B$19","v":"Trial site 151"},"2018-09-18","P20 214 kg/ha",null,null,null,null,null,{"$f":"'[11]Input data 2'!$B$22","v":"Trial site 154"},"2019-04-02","NPK 17-5-10  588 kg/ha"]
[null,null,"2019-03-30","Besal 170 kg/ha",null,null,null,null,null,null,"2019-04-05","Besal 170 kg/ha"]
[null,null,"2019-04-06","Yara mila raps 17-5-10"]
[null,null,"2019-06-17","Mangan 235 1,0"]
[]
[null,{"$f":"'[11]Input data 2'!$B$20","v":"Trial site 152"},"2019-03-30","Probeta NPK 730 kg/ha",null,null,null,null,null,{"$f":"'[11]Input data 2'!$B$24","v":0},"2019-XX-XX"]
[null,null,"2019-XX-XX",null,null,null,null,null,null,null,"2019-XX-XX"]
[]
[null,"Leaf diseases",null,null,null,null,null,null,null,"Leaf diseases"]
[null,"Site","Date",null,"Product and dose",null,null,null,null,"Site","Date",null,"Product and dose"]
[null,{"$f":"'[11]Input data 2'!$B$18","v":"Trial site 150"},"2019-XX-XX",null,null,null,null,null,null,{"$f":"'[11]Input data 2'!$B$21","v":"Trial site 153"},"2019-XX-XX"]
[null,null,"2019-XX-XX",null,null,null,null,null,null,null,"2019-XX-XX"]
[]
[null,{"$f":"'[11]Input data 2'!$B$19","v":"Trial site 151"},"2019-XX-XX",null,null,null,null,null,null,{"$f":"'[11]Input data 2'!$B$22","v":"Trial site 154"},"2019-XX-XX"]
[null,null,"2019-XX-XX",null,null,null,null,null,null,null,"2019-XX-XX"]
[]
[null,{"$f":"'[11]Input data 2'!$B$20","v":"Trial site 152"},"2019-XX-XX",null,null,null,null,null,null,{"$f":"'[11]Input data 2'!$B$24","v":0},"2019-XX-XX"]
[null,null,"2019-XX-XX",null,null,null,null,null,null,null,"2019-XX-XX"]
[]
[]
[null,"Försöksinformation / Trial information",null,null,null,null,null,null,null,"Försöksinformation / Trial information"]
[null,"Site","Seeding date","Pre-crop","Variety","Row spacing","Seeds/m","Plot length",null,"Site","Seeding date","Pre-crop","Variety","Row spacing","Seeds/m","Plot length"]
[null,{"$f":"'[11]Input data 2'!$B$18","v":"Trial site 150"},"2019-04-02","spring barley","Selma",48,null,null,8,{"$f":"'[11]Input data 2'!$B$21","v":"Trial site 153"},"2019-04-01","winter wheat","Selma",48,null,8]
[]
[null,{"$f":"'[11]Input data 2'!$B$19","v":"Trial site 151"},"2019-04-06","winter wheat","Dahpna",50,null,null,8,{"$f":"'[11]Input data 2'!$B$22","v":"Trial site 154"},"2019-04-07","winter wheat","Dahpna",48,null,8]
[]
[null,{"$f":"'[11]Input data 2'!$B$20","v":"Trial site 152"},"2019-04-02","winter wheat","Dahpna",48,null,8,8,{"$f":"'[11]Input data 2'!$B$24","v":0}]

{"sheet":"Field protocol 154","index":14,"n_rows":14,"n_cols":7,"rows_kept":14,"cut":false,"hidden":false,"merged":[]}
["427 Strategies for leaf diseases in sugar beet",null,"Joakim Ekelöf (+46) 736 28 67 24"]
["Trial number: 154/19"]
["Trial host: Wäggarp, Lars-Anders Ohlsson, tel:  (272)"]
["Coordinates:"]
["SP nr. and name","Kommentar",null,"Utförare","Signatur","Utfört datum"]
["2.12 Inmätning, märkning ",null,null,"HS","JM","2019-07-08",154003]
["5.3 100 %","",null,"HS","RM","2019-07-23",154008]
["10.3 Bedömning av grön bladyta","Bedöm återväxt ",null,"HS","IMO","2019-10-28",154009]
["9.1 Parcellsprutning, per spruttillfälle ","TI Enligt plan",null,"HS","JM","2019-07-27",154011]
["9.1 Parcellsprutning, per spruttillfälle ","TII enligt plan",null,"HS","AM","2019-08-20",154012]
["11.1 Bladsvampsangrepp (Alla, hela parcellen)","",null,"HS","IMO","2019-09-06",154014]
["12.2 Besiktning inför skörd","",null,"HS","JE","2019-09-19",154015]
["13.8 Skörd av parcell","",null,"HS","OL RM PW","2019-10-29",154016]
["11.1 Bladsvampsangrepp (Alla, hela parcellen)","Görs strax innan skör i alla parceller",null,"HS","IMO","2019-10-28",154017]

{"sheet":"Field protocol 153","index":15,"n_rows":14,"n_cols":7,"rows_kept":14,"cut":false,"hidden":false,"merged":[]}
["427 Strategies for leaf diseases in sugar beet",null,"Joakim Ekelöf (+46) 736 28 67 24"]
["Trial number: 153/19"]
["Trial host: Kornheddinge 2, Håkan Olsson , tel:  (90)"]
["Coordinates:"]
["SP nr. and name","Kommentar",null,"Utförare","Signatur","Utfört datum"]
["2.12 Inmätning, märkning ",null,null,"HS","JM","2019-07-16",153004]
["5.3 100 %","",null,"HS","RM","2019-07-23",153009]
["10.3 Bedömning av grön bladyta","Bedöm återväxt ",null,"HS","IMO","2019-11-06",153010]
["9.1 Parcellsprutning, per spruttillfälle ","TI Enligt plan",null,"HS","PW","2019-08-02",153012]
["9.1 Parcellsprutning, per spruttillfälle ","TII enligt plan",null,"HS","AM","2019-08-23",153013]
["11.1 Bladsvampsangrepp (Alla, hela parcellen)","",null,"HS"," IMO","2019-09-05",153015]
["12.2 Besiktning inför skörd","",null,"HS","JE","2019-09-24",153016]
["13.8 Skörd av parcell","",null,"HS","OL JM EMN","2019-11-07",153017]
["11.1 Bladsvampsangrepp (Alla, hela parcellen)","Görs strax innan skör i alla parceller",null,"HS","IMO","2019-11-06",153018]

{"sheet":"Field protocol 152","index":16,"n_rows":15,"n_cols":7,"rows_kept":15,"cut":false,"hidden":false,"merged":[]}
["427 Strategies for leaf diseases in sugar beet",null,"Joakim Ekelöf (+46) 736 28 67 24"]
["Trial number: 152/19"]
["Trial host: Vragerup, Christian Wraghe, tel:  (39)"]
["Coordinates:"]
["SP nr. and name","Kommentar",null,"Utförare","Signatur","Utfört datum"]
["2.12 Inmätning, märkning ",null,null,"HS","JM","2019-07-16",152004]
["5.3 100 %","",null,"HS","RM","2019-07-23",152009]
["10.3 Bedömning av grön bladyta","Bedöm återväxt ",null,"HS","IMO","2019-11-13",152010]
["9.2 Preparatuppvägning, per flaska ","För båda behandlingstillfällena",null,"HS","JS","2019-07-22",152011]
["9.1 Parcellsprutning, per spruttillfälle ","TI Enligt plan",null,"HS","PW","2019-08-02",152012]
["9.1 Parcellsprutning, per spruttillfälle ","TII enligt plan",null,"HS","PW","2019-08-23",152013]
["11.1 Bladsvampsangrepp (Alla, hela parcellen)","",null,"HS","IMO","2019-09-05",152014]
["12.2 Besiktning inför skörd","",null,"HS","JE","2019-09-19",152015]
["13.8 Skörd av parcell","",null,"HS","OL JM PL","2019-11-14",152017]
["11.1 Bladsvampsangrepp (Alla, hela parcellen)","Görs strax innan skör i alla parceller",null,"HS"," IMO","2019-11-13",152018]

{"sheet":"Field protocol 151","index":17,"n_rows":16,"n_cols":7,"rows_kept":16,"cut":false,"hidden":false,"merged":[]}
["427 Strategies for leaf diseases in sugar beet",null,"Joakim Ekelöf (+46) 736 28 67 24"]
["Trial number: 151/19"]
["Trial host: Vallby, Johan Hansson, tel: (271)"]
["Coordinates:"]
["SP nr. and name","Kommentar",null,"Utförare","Signatur","Utfört datum"]
["2.12 Inmätning, märkning ",null,null,"HS","JM","2019-07-08",151004]
["2.13 Odlingsåtgärder och dokumentation ",null,null,"HS","JM","2019-09-12",151006]
["5.3 100 %","",null,"HS","RM","2019-07-26",151008]
["10.3 Bedömning av grön bladyta","Bedöm återväxt ",null,"HS","IMO","2019-11-06",151009]
["9.2 Preparatuppvägning, per flaska ","För båda behandlingstillfällena",null,"HS","JS","2019-07-22",151010]
["9.1 Parcellsprutning, per spruttillfälle ","TI Enligt plan",null,"HS","JM","2019-08-02",151011]
["9.1 Parcellsprutning, per spruttillfälle ","TII enligt plan",null,"HS","PW","2019-08-22",151012]
["11.1 Bladsvampsangrepp (Alla, hela parcellen)","",null,"HS","IMO","2019-09-04",151013]
["12.2 Besiktning inför skörd","",null,"HS","JE","2019-09-24",151014]
["13.8 Skörd av parcell","",null,"HS","OL JM EMN","2019-11-07",151016]
["11.1 Bladsvampsangrepp (Alla, hela parcellen)","Görs strax innan skör i alla parceller",null,"HS","IMO","2019-11-06",151017]

{"sheet":"Field protocol 150","index":18,"n_rows":14,"n_cols":7,"rows_kept":14,"cut":false,"hidden":false,"merged":[]}
["427 Strategies for leaf diseases in sugar beet",null,"Joakim Ekelöf (+46) 736 28 67 24"]
["Trial number: 150/19"]
["Trial host: Sassarp, Fredrik Sassner, tel:  (54)"]
["Coordinates:"]
["SP nr. and name","Kommentar",null,"Utförare","Signatur","Utfört datum"]
["5.3 100 %","",null,"HS","RM","2019-07-05",150008]
["10.3 Bedömning av grön bladyta","Bedöm återväxt ",null,"HS","IMO","2019-09-06",150009]
["9.2 Preparatuppvägning, per flaska","För båda behandlingstillfällena",null,"HS","JS","2019-07-22",150010]
["9.1 Parcellsprutning, per spruttillfälle ","TI Enligt plan",null,"HS","JMY","2019-08-09",150011]
["9.1 Parcellsprutning, per spruttillfälle ","TII enligt plan",null,"HS","PW","2019-09-02",150012]
["11.1 Bladsvampsangrepp (Alla, hela parcellen)","",null,"HS"," IMO","2019-09-06",150013]
["12.2 Besiktning inför skörd","",null,"HS","JE","2019-09-24",150014]
["13.8 Skörd av parcell","",null,"HS","OL JL ","2019-11-15",150016]
["11.1 Bladsvampsangrepp (Alla, hela parcellen)","Görs strax innan skör i alla parceller",null,"HS","IMO","2019-11-07",150017]